Workbook

Sheet Info
B2: This document applies to these design file versions.
B4: Schematic Version | C4: 1.2.2
B5: PCB Version | C5: 1.2.1

Sheet BOM
A1: Subsystem | B1: Manufacturer | C1: Part Number | D1: Qty | E1: T | F1: Designator | G1: Description | H1: Package | I1: T-storage | J1: Est. Cost | K1: Qty | L1: $ Ext. | M1: Source | N1: Length | O1: Width | P1: Height | Q1: Depth | R1: Units | S1: Length | T1: Width | U1: Height | V1: Depth | W1: Units
A2: Keypad | B2: Taiyo Yuden | C2: UMK105B7102KV-F | D2: =1+LEN(F2)-LEN(SUBSTITUTE(F2,",","")) -> 5 | E2: =IF(F2<>"",LEFT(F2,1),"Z") -> C | F2: C102,C103,C104,C105,C106 | G2: 1000pF, 50v, 10% | H2: 0402 | I2: -55, +125 | J2: 0.0078 | K2: 250 | L2: =D2*J2 -> 0.039 | M2: Digi-Key | N2: =VLOOKUP($H2,$A$73:$G$101,2,FALSE) -> 1 | O2: =VLOOKUP($H2,$A$73:$G$101,3, FALSE) -> 0.5 | P2: =VLOOKUP($H2,$A$73:$G$101,4,FALSE) -> 0.4 | Q2: =VLOOKUP($H2,$A$73:$G$101,5,TRUE) -> 0 | R2: mm | S2: =IF(AND($R2<>"",N2<>""),N2*VLOOKUP($R2,$A$67:$B$69,2),"") -> 0.03937007874 | T2: =IF(AND($R2<>"",O2<>""),O2*VLOOKUP($R2,$A$67:$B$69,2),"") -> 0.01968503937 | U2: =IF(AND($R2<>"",P2<>""),P2*VLOOKUP($R2,$A$67:$B$69,2),"") -> 0.0157480315 | V2: =IF(AND($R2<>"",Q2<>""),Q2*VLOOKUP($R2,$A$67:$B$69,2),"") -> 0 | W2: =IF(R2<>"",IF(R2=$A$69,$A$68,$A$69),"") -> inch
A3: Micro | B3: TDK Corp | C3: C1608X7R1H104K | D3: =1+LEN(F3)-LEN(SUBSTITUTE(F3,",","")) -> 1 | E3: =IF(F3<>"",LEFT(F3,1),"Z") -> C | F3: C101 | G3: 0.1uF, 50v, 10%, Cer | H3: 0603 | I3: -55, +125 | J3: 0.018 | K3: 250 | L3: =D3*J3 -> 0.018 | M3: Digi-Key | N3: =VLOOKUP($H3,$A$73:$G$101,2,FALSE) -> 1.6 | O3: =VLOOKUP($H3,$A$73:$G$101,3, FALSE) -> 0.8 | P3: =VLOOKUP($H3,$A$73:$G$101,4,FALSE) -> 0.8 | Q3: =VLOOKUP($H3,$A$73:$G$101,5,TRUE) -> 0 | R3: mm | S3: =IF(AND($R3<>"",N3<>""),N3*VLOOKUP($R3,$A$67:$B$69,2),"") -> 0.06299212598 | T3: =IF(AND($R3<>"",O3<>""),O3*VLOOKUP($R3,$A$67:$B$69,2),"") -> 0.03149606299 | U3: =IF(AND($R3<>"",P3<>""),P3*VLOOKUP($R3,$A$67:$B$69,2),"") -> 0.03149606299 | V3: =IF(AND($R3<>"",Q3<>""),Q3*VLOOKUP($R3,$A$67:$B$69,2),"") -> 0 | W3: =IF(R3<>"",IF(R3=$A$69,$A$68,$A$69),"") -> inch
A4: Sense | B4: TDK Corp | C4: C1005X7S2A103K | D4: =1+LEN(F4)-LEN(SUBSTITUTE(F4,",","")) -> 2 | E4: =IF(F4<>"",LEFT(F4,1),"Z") -> C | F4: C202,C203 | G4: 0.01uF, 100v, 10%, Cer | H4: 0402T | I4: -55, +125 | J4: 0.02924 | K4: 250 | L4: =D4*J4 -> 0.05848 | M4: Digi-Key | N4: =VLOOKUP($H4,$A$73:$G$101,2,FALSE) -> 1 | O4: =VLOOKUP($H4,$A$73:$G$101,3, FALSE) -> 0.5 | P4: =VLOOKUP($H4,$A$73:$G$101,4,FALSE) -> 0.55 | Q4: =VLOOKUP($H4,$A$73:$G$101,5,TRUE) -> 0 | R4: mm | S4: =IF(AND($R4<>"",N4<>""),N4*VLOOKUP($R4,$A$67:$B$69,2),"") -> 0.03937007874 | T4: =IF(AND($R4<>"",O4<>""),O4*VLOOKUP($R4,$A$67:$B$69,2),"") -> 0.01968503937 | U4: =IF(AND($R4<>"",P4<>""),P4*VLOOKUP($R4,$A$67:$B$69,2),"") -> 0.02165354331 | V4: =IF(AND($R4<>"",Q4<>""),Q4*VLOOKUP($R4,$A$67:$B$69,2),"") -> 0 | W4: =IF(R4<>"",IF(R4=$A$69,$A$68,$A$69),"") -> inch
A5: +12v Clean Supply | B5: Cornell Dubilier | C5: AFK475M80D16T-F | D5: =1+LEN(F5)-LEN(SUBSTITUTE(F5,",","")) -> 1 | E5: =IF(F5<>"",LEFT(F5,1),"Z") -> C | F5: C204 | G5: 4.7uF, 80v, 20%, Al | H5: CAN SMD-6 | I5: -55, +105 | J5: 0.325 | K5: 100 | L5: =D5*J5 -> 0.325 | M5: Digi-Key | N5: =VLOOKUP($H5,$A$73:$G$101,2,FALSE) -> 6.3 | O5: =VLOOKUP($H5,$A$73:$G$101,3, FALSE) -> 6.3 | P5: =VLOOKUP($H5,$A$73:$G$101,4,FALSE) -> 5.8 | Q5: =VLOOKUP($H5,$A$73:$G$101,5,TRUE) -> 0 | R5: mm | S5: =IF(AND($R5<>"",N5<>""),N5*VLOOKUP($R5,$A$67:$B$69,2),"") -> 0.2480314961 | T5: =IF(AND($R5<>"",O5<>""),O5*VLOOKUP($R5,$A$67:$B$69,2),"") -> 0.2480314961 | U5: =IF(AND($R5<>"",P5<>""),P5*VLOOKUP($R5,$A$67:$B$69,2),"") -> 0.2283464567 | V5: =IF(AND($R5<>"",Q5<>""),Q5*VLOOKUP($R5,$A$67:$B$69,2),"") -> 0 | W5: =IF(R5<>"",IF(R5=$A$69,$A$68,$A$69),"") -> inch
A6: +3.3v Supply | B6: TDK Corp | C6: C2012X5R1E475K | D6: =1+LEN(F6)-LEN(SUBSTITUTE(F6,",","")) -> 1 | E6: =IF(F6<>"",LEFT(F6,1),"Z") -> C | F6: C205 | G6: 4.7uF, 25v, 10%, Cer | H6: 0805 | I6: -55, +85 | J6: 0.09 | K6: 250 | L6: =D6*J6 -> 0.09 | M6: Digi-Key | N6: =VLOOKUP($H6,$A$73:$G$101,2,FALSE) -> 2 | O6: =VLOOKUP($H6,$A$73:$G$101,3, FALSE) -> 1.25 | P6: =VLOOKUP($H6,$A$73:$G$101,4,FALSE) -> 1.45 | Q6: =VLOOKUP($H6,$A$73:$G$101,5,TRUE) -> 0 | R6: mm | S6: =IF(AND($R6<>"",N6<>""),N6*VLOOKUP($R6,$A$67:$B$69,2),"") -> 0.07874015748 | T6: =IF(AND($R6<>"",O6<>""),O6*VLOOKUP($R6,$A$67:$B$69,2),"") -> 0.04921259843 | U6: =IF(AND($R6<>"",P6<>""),P6*VLOOKUP($R6,$A$67:$B$69,2),"") -> 0.05708661417 | V6: =IF(AND($R6<>"",Q6<>""),Q6*VLOOKUP($R6,$A$67:$B$69,2),"") -> 0 | W6: =IF(R6<>"",IF(R6=$A$69,$A$68,$A$69),"") -> inch
A7: +3.3v Supply | B7: TDK Corp | C7: C1005X5R1H471K | D7: =1+LEN(F7)-LEN(SUBSTITUTE(F7,",","")) -> 1 | E7: =IF(F7<>"",LEFT(F7,1),"Z") -> C | F7: C206 | G7: 470pF, 50v | H7: 0402 | I7: -55, +85 | J7: 0.009 | K7: 250 | L7: =D7*J7 -> 0.009 | M7: Digi-Key | N7: =VLOOKUP($H7,$A$73:$G$101,2,FALSE) -> 1 | O7: =VLOOKUP($H7,$A$73:$G$101,3, FALSE) -> 0.5 | P7: =VLOOKUP($H7,$A$73:$G$101,4,FALSE) -> 0.4 | Q7: =VLOOKUP($H7,$A$73:$G$101,5,TRUE) -> 0 | R7: mm | S7: =IF(AND($R7<>"",N7<>""),N7*VLOOKUP($R7,$A$67:$B$69,2),"") -> 0.03937007874 | T7: =IF(AND($R7<>"",O7<>""),O7*VLOOKUP($R7,$A$67:$B$69,2),"") -> 0.01968503937 | U7: =IF(AND($R7<>"",P7<>""),P7*VLOOKUP($R7,$A$67:$B$69,2),"") -> 0.0157480315 | V7: =IF(AND($R7<>"",Q7<>""),Q7*VLOOKUP($R7,$A$67:$B$69,2),"") -> 0 | W7: =IF(R7<>"",IF(R7=$A$69,$A$68,$A$69),"") -> inch
A8: +3.3v Supply | B8: TDK Corp | C8: C2012X5R1E475K | D8: =1+LEN(F8)-LEN(SUBSTITUTE(F8,",","")) -> 1 | E8: =IF(F8<>"",LEFT(F8,1),"Z") -> C | F8: C207 | G8: 4.7uF, 25v, 10%, Cer | H8: 0805 | I8: -55, +85 | J8: 0.09 | K8: 250 | L8: =D8*J8 -> 0.09 | M8: Digi-Key | N8: =VLOOKUP($H8,$A$73:$G$101,2,FALSE) -> 2 | O8: =VLOOKUP($H8,$A$73:$G$101,3, FALSE) -> 1.25 | P8: =VLOOKUP($H8,$A$73:$G$101,4,FALSE) -> 1.45 | Q8: =VLOOKUP($H8,$A$73:$G$101,5,TRUE) -> 0 | R8: mm | S8: =IF(AND($R8<>"",N8<>""),N8*VLOOKUP($R8,$A$67:$B$69,2),"") -> 0.07874015748 | T8: =IF(AND($R8<>"",O8<>""),O8*VLOOKUP($R8,$A$67:$B$69,2),"") -> 0.04921259843 | U8: =IF(AND($R8<>"",P8<>""),P8*VLOOKUP($R8,$A$67:$B$69,2),"") -> 0.05708661417 | V8: =IF(AND($R8<>"",Q8<>""),Q8*VLOOKUP($R8,$A$67:$B$69,2),"") -> 0 | W8: =IF(R8<>"",IF(R8=$A$69,$A$68,$A$69),"") -> inch
A9: +12v Clean Supply | B9: TDK Corp | C9: C1005X7S2A103K | D9: =1+LEN(F9)-LEN(SUBSTITUTE(F9,",","")) -> 1 | E9: =IF(F9<>"",LEFT(F9,1),"Z") -> C | F9: C208 | G9: 0.01uF, 100v, 10%, Cer | H9: 0402T | I9: -55, +125 | J9: 0.02924 | K9: 250 | L9: =D9*J9 -> 0.02924 | M9: Digi-Key | N9: =VLOOKUP($H9,$A$73:$G$101,2,FALSE) -> 1 | O9: =VLOOKUP($H9,$A$73:$G$101,3, FALSE) -> 0.5 | P9: =VLOOKUP($H9,$A$73:$G$101,4,FALSE) -> 0.55 | Q9: =VLOOKUP($H9,$A$73:$G$101,5,TRUE) -> 0 | R9: mm | S9: =IF(AND($R9<>"",N9<>""),N9*VLOOKUP($R9,$A$67:$B$69,2),"") -> 0.03937007874 | T9: =IF(AND($R9<>"",O9<>""),O9*VLOOKUP($R9,$A$67:$B$69,2),"") -> 0.01968503937 | U9: =IF(AND($R9<>"",P9<>""),P9*VLOOKUP($R9,$A$67:$B$69,2),"") -> 0.02165354331 | V9: =IF(AND($R9<>"",Q9<>""),Q9*VLOOKUP($R9,$A$67:$B$69,2),"") -> 0 | W9: =IF(R9<>"",IF(R9=$A$69,$A$68,$A$69),"") -> inch
A10: +12v Supply | B10: TDK Corp | C10: C1608X7R1E684K | D10: =1+LEN(F10)-LEN(SUBSTITUTE(F10,",","")) -> 1 | E10: =IF(F10<>"",LEFT(F10,1),"Z") -> C | F10: C209 | G10: 0.68uF, 25v, 10%, Cer | H10: 0603 | I10: -55, +125 | J10: 0.075 | K10: 250 | L10: =D10*J10 -> 0.075 | M10: Digi-Key | N10: =VLOOKUP($H10,$A$73:$G$101,2,FALSE) -> 1.6 | O10: =VLOOKUP($H10,$A$73:$G$101,3, FALSE) -> 0.8 | P10: =VLOOKUP($H10,$A$73:$G$101,4,FALSE) -> 0.8 | Q10: =VLOOKUP($H10,$A$73:$G$101,5,TRUE) -> 0 | R10: mm | S10: =IF(AND($R10<>"",N10<>""),N10*VLOOKUP($R10,$A$67:$B$69,2),"") -> 0.06299212598 | T10: =IF(AND($R10<>"",O10<>""),O10*VLOOKUP($R10,$A$67:$B$69,2),"") -> 0.03149606299 | U10: =IF(AND($R10<>"",P10<>""),P10*VLOOKUP($R10,$A$67:$B$69,2),"") -> 0.03149606299 | V10: =IF(AND($R10<>"",Q10<>""),Q10*VLOOKUP($R10,$A$67:$B$69,2),"") -> 0 | W10: =IF(R10<>"",IF(R10=$A$69,$A$68,$A$69),"") -> inch
A11: +12v Supply | B11: TDK Corp | C11: C5750X7S2A106M | D11: =1+LEN(F11)-LEN(SUBSTITUTE(F11,",","")) -> 1 | E11: =IF(F11<>"",LEFT(F11,1),"Z") -> C | F11: C210 | G11: 10uF, 100v, 20%, Cer | H11: 2220 | I11: -55, +125 | J11: 1.41 | K11: 100 | L11: =D11*J11 -> 1.41 | M11: Digi-Key | N11: =VLOOKUP($H11,$A$73:$G$101,2,FALSE) -> 5.7 | O11: =VLOOKUP($H11,$A$73:$G$101,3, FALSE) -> 5 | P11: =VLOOKUP($H11,$A$73:$G$101,4,FALSE) -> 2.5 | Q11: =VLOOKUP($H11,$A$73:$G$101,5,TRUE) -> 0 | R11: mm | S11: =IF(AND($R11<>"",N11<>""),N11*VLOOKUP($R11,$A$67:$B$69,2),"") -> 0.2244094488 | T11: =IF(AND($R11<>"",O11<>""),O11*VLOOKUP($R11,$A$67:$B$69,2),"") -> 0.1968503937 | U11: =IF(AND($R11<>"",P11<>""),P11*VLOOKUP($R11,$A$67:$B$69,2),"") -> 0.09842519685 | V11: =IF(AND($R11<>"",Q11<>""),Q11*VLOOKUP($R11,$A$67:$B$69,2),"") -> 0 | W11: =IF(R11<>"",IF(R11=$A$69,$A$68,$A$69),"") -> inch
A12: +12v Supply | B12: Taiyo Yuden | C12: UMK105B7102KV-F | D12: =1+LEN(F12)-LEN(SUBSTITUTE(F12,",","")) -> 3 | E12: =IF(F12<>"",LEFT(F12,1),"Z") -> C | F12: C211,C215,C217 | G12: 1000pF, 50v, 10% (OMIT) | H12: 0402 | I12: -55, +125 | J12: 0.0078 | K12: 250 | L12: =D12*J12 -> 0.0234 | M12: Digi-Key | N12: =VLOOKUP($H12,$A$73:$G$101,2,FALSE) -> 1 | O12: =VLOOKUP($H12,$A$73:$G$101,3, FALSE) -> 0.5 | P12: =VLOOKUP($H12,$A$73:$G$101,4,FALSE) -> 0.4 | Q12: =VLOOKUP($H12,$A$73:$G$101,5,TRUE) -> 0 | R12: mm | S12: =IF(AND($R12<>"",N12<>""),N12*VLOOKUP($R12,$A$67:$B$69,2),"") -> 0.03937007874 | T12: =IF(AND($R12<>"",O12<>""),O12*VLOOKUP($R12,$A$67:$B$69,2),"") -> 0.01968503937 | U12: =IF(AND($R12<>"",P12<>""),P12*VLOOKUP($R12,$A$67:$B$69,2),"") -> 0.0157480315 | V12: =IF(AND($R12<>"",Q12<>""),Q12*VLOOKUP($R12,$A$67:$B$69,2),"") -> 0 | W12: =IF(R12<>"",IF(R12=$A$69,$A$68,$A$69),"") -> inch
A13: +12v Supply | B13: Taiyo Yuden | C13: UMK105B7102KV-F | D13: =1+LEN(F13)-LEN(SUBSTITUTE(F13,",","")) -> 1 | E13: =IF(F13<>"",LEFT(F13,1),"Z") -> C | F13: C212 | G13: 1000pF, 50v, 10% | H13: 0402 | I13: -55, +125 | J13: 0.0078 | K13: 250 | L13: =D13*J13 -> 0.0078 | M13: Digi-Key | N13: =VLOOKUP($H13,$A$73:$G$101,2,FALSE) -> 1 | O13: =VLOOKUP($H13,$A$73:$G$101,3, FALSE) -> 0.5 | P13: =VLOOKUP($H13,$A$73:$G$101,4,FALSE) -> 0.4 | Q13: =VLOOKUP($H13,$A$73:$G$101,5,TRUE) -> 0 | R13: mm | S13: =IF(AND($R13<>"",N13<>""),N13*VLOOKUP($R13,$A$67:$B$69,2),"") -> 0.03937007874 | T13: =IF(AND($R13<>"",O13<>""),O13*VLOOKUP($R13,$A$67:$B$69,2),"") -> 0.01968503937 | U13: =IF(AND($R13<>"",P13<>""),P13*VLOOKUP($R13,$A$67:$B$69,2),"") -> 0.0157480315 | V13: =IF(AND($R13<>"",Q13<>""),Q13*VLOOKUP($R13,$A$67:$B$69,2),"") -> 0 | W13: =IF(R13<>"",IF(R13=$A$69,$A$68,$A$69),"") -> inch
A14: +12v Supply | B14: TDK Corp | C14: C1005X7S1A474K | D14: =1+LEN(F14)-LEN(SUBSTITUTE(F14,",","")) -> 1 | E14: =IF(F14<>"",LEFT(F14,1),"Z") -> C | F14: C213 | G14: 0.47uF, 10v, 10%, Cer | H14: 0402 | I14: -55, +125 | J14: 0.036 | K14: 250 | L14: =D14*J14 -> 0.036 | M14: Digi-Key | N14: =VLOOKUP($H14,$A$73:$G$101,2,FALSE) -> 1 | O14: =VLOOKUP($H14,$A$73:$G$101,3, FALSE) -> 0.5 | P14: =VLOOKUP($H14,$A$73:$G$101,4,FALSE) -> 0.4 | Q14: =VLOOKUP($H14,$A$73:$G$101,5,TRUE) -> 0 | R14: mm | S14: =IF(AND($R14<>"",N14<>""),N14*VLOOKUP($R14,$A$67:$B$69,2),"") -> 0.03937007874 | T14: =IF(AND($R14<>"",O14<>""),O14*VLOOKUP($R14,$A$67:$B$69,2),"") -> 0.01968503937 | U14: =IF(AND($R14<>"",P14<>""),P14*VLOOKUP($R14,$A$67:$B$69,2),"") -> 0.0157480315 | V14: =IF(AND($R14<>"",Q14<>""),Q14*VLOOKUP($R14,$A$67:$B$69,2),"") -> 0 | W14: =IF(R14<>"",IF(R14=$A$69,$A$68,$A$69),"") -> inch
A15: +12v Supply | B15: Johanson Dielectrics | C15: 160S41X226KV4E | D15: =1+LEN(F15)-LEN(SUBSTITUTE(F15,",","")) -> 2 | E15: =IF(F15<>"",LEFT(F15,1),"Z") -> C | F15: C214,C218 | G15: 22uF, 16v, 10%, X5R Cer | H15: 1210 | I15: -55, +85 | J15: 0.7168 | K15: 250 | L15: =D15*J15 -> 1.4336 | M15: Digi-Key | N15: =VLOOKUP($H15,$A$73:$G$101,2,FALSE) -> 3.2 | O15: =VLOOKUP($H15,$A$73:$G$101,3, FALSE) -> 2.44 | P15: =VLOOKUP($H15,$A$73:$G$101,4,FALSE) -> 2.8 | Q15: =VLOOKUP($H15,$A$73:$G$101,5,TRUE) -> 0 | R15: mm | S15: =IF(AND($R15<>"",N15<>""),N15*VLOOKUP($R15,$A$67:$B$69,2),"") -> 0.125984252 | T15: =IF(AND($R15<>"",O15<>""),O15*VLOOKUP($R15,$A$67:$B$69,2),"") -> 0.09606299213 | U15: =IF(AND($R15<>"",P15<>""),P15*VLOOKUP($R15,$A$67:$B$69,2),"") -> 0.1102362205 | V15: =IF(AND($R15<>"",Q15<>""),Q15*VLOOKUP($R15,$A$67:$B$69,2),"") -> 0 | W15: =IF(R15<>"",IF(R15=$A$69,$A$68,$A$69),"") -> inch
A16: +12v Supply | B16: Panasonic | C16: EEE-2AA100UP | D16: =1+LEN(F16)-LEN(SUBSTITUTE(F16,",","")) -> 1 | E16: =IF(F16<>"",LEFT(F16,1),"Z") -> C | F16: C216 | G16: 10uF, 100v, 20%, Alu | H16: CAN SMD-8 | I16: -40, +85 | J16: 0.29108 | K16: 250 | L16: =D16*J16 -> 0.29108 | M16: Digi-Key | N16: =VLOOKUP($H16,$A$73:$G$101,2,FALSE) -> 8 | O16: =VLOOKUP($H16,$A$73:$G$101,3, FALSE) -> 8 | P16: =VLOOKUP($H16,$A$73:$G$101,4,FALSE) -> 6.2 | Q16: =VLOOKUP($H16,$A$73:$G$101,5,TRUE) -> 0 | R16: mm | S16: =IF(AND($R16<>"",N16<>""),N16*VLOOKUP($R16,$A$67:$B$69,2),"") -> 0.3149606299 | T16: =IF(AND($R16<>"",O16<>""),O16*VLOOKUP($R16,$A$67:$B$69,2),"") -> 0.3149606299 | U16: =IF(AND($R16<>"",P16<>""),P16*VLOOKUP($R16,$A$67:$B$69,2),"") -> 0.2440944882 | V16: =IF(AND($R16<>"",Q16<>""),Q16*VLOOKUP($R16,$A$67:$B$69,2),"") -> 0 | W16: =IF(R16<>"",IF(R16=$A$69,$A$68,$A$69),"") -> inch
A17: Motor | B17: TDK Corp | C17: C1608X7R1H104K | D17: =1+LEN(F17)-LEN(SUBSTITUTE(F17,",","")) -> 1 | E17: =IF(F17<>"",LEFT(F17,1),"Z") -> C | F17: C301 | G17: 0.1uF, 50v, 10%, Cer | H17: 0603 | I17: -55, +125 | J17: 0.018 | K17: 250 | L17: =D17*J17 -> 0.018 | M17: Digi-Key | N17: =VLOOKUP($H17,$A$73:$G$101,2,FALSE) -> 1.6 | O17: =VLOOKUP($H17,$A$73:$G$101,3, FALSE) -> 0.8 | P17: =VLOOKUP($H17,$A$73:$G$101,4,FALSE) -> 0.8 | Q17: =VLOOKUP($H17,$A$73:$G$101,5,TRUE) -> 0 | R17: mm | S17: =IF(AND($R17<>"",N17<>""),N17*VLOOKUP($R17,$A$67:$B$69,2),"") -> 0.06299212598 | T17: =IF(AND($R17<>"",O17<>""),O17*VLOOKUP($R17,$A$67:$B$69,2),"") -> 0.03149606299 | U17: =IF(AND($R17<>"",P17<>""),P17*VLOOKUP($R17,$A$67:$B$69,2),"") -> 0.03149606299 | V17: =IF(AND($R17<>"",Q17<>""),Q17*VLOOKUP($R17,$A$67:$B$69,2),"") -> 0 | W17: =IF(R17<>"",IF(R17=$A$69,$A$68,$A$69),"") -> inch
A18: Wake Out | B18: TDK Corp | C18: C1608X7R1H104K | D18: =1+LEN(F18)-LEN(SUBSTITUTE(F18,",","")) -> 1 | E18: =IF(F18<>"",LEFT(F18,1),"Z") -> C | F18: C302 | G18: 0.1uF, 50v, 10%, Cer | H18: 0603 | I18: -55, +125 | J18: 0.018 | K18: 250 | L18: =D18*J18 -> 0.018 | M18: Digi-Key | N18: =VLOOKUP($H18,$A$73:$G$101,2,FALSE) -> 1.6 | O18: =VLOOKUP($H18,$A$73:$G$101,3, FALSE) -> 0.8 | P18: =VLOOKUP($H18,$A$73:$G$101,4,FALSE) -> 0.8 | Q18: =VLOOKUP($H18,$A$73:$G$101,5,TRUE) -> 0 | R18: mm | S18: =IF(AND($R18<>"",N18<>""),N18*VLOOKUP($R18,$A$67:$B$69,2),"") -> 0.06299212598 | T18: =IF(AND($R18<>"",O18<>""),O18*VLOOKUP($R18,$A$67:$B$69,2),"") -> 0.03149606299 | U18: =IF(AND($R18<>"",P18<>""),P18*VLOOKUP($R18,$A$67:$B$69,2),"") -> 0.03149606299 | V18: =IF(AND($R18<>"",Q18<>""),Q18*VLOOKUP($R18,$A$67:$B$69,2),"") -> 0 | W18: =IF(R18<>"",IF(R18=$A$69,$A$68,$A$69),"") -> inch
A19: LIN | B19: TDK Corp | C19: C1608C0G2A221J | D19: =1+LEN(F19)-LEN(SUBSTITUTE(F19,",","")) -> 1 | E19: =IF(F19<>"",LEFT(F19,1),"Z") -> C | F19: C303 | G19: 220pF, 100v, 5%, Cer | H19: 0603 | I19: -55, +125 | J19: 0.039 | K19: 250 | L19: =D19*J19 -> 0.039 | M19: Digi-Key | N19: =VLOOKUP($H19,$A$73:$G$101,2,FALSE) -> 1.6 | O19: =VLOOKUP($H19,$A$73:$G$101,3, FALSE) -> 0.8 | P19: =VLOOKUP($H19,$A$73:$G$101,4,FALSE) -> 0.8 | Q19: =VLOOKUP($H19,$A$73:$G$101,5,TRUE) -> 0 | R19: mm | S19: =IF(AND($R19<>"",N19<>""),N19*VLOOKUP($R19,$A$67:$B$69,2),"") -> 0.06299212598 | T19: =IF(AND($R19<>"",O19<>""),O19*VLOOKUP($R19,$A$67:$B$69,2),"") -> 0.03149606299 | U19: =IF(AND($R19<>"",P19<>""),P19*VLOOKUP($R19,$A$67:$B$69,2),"") -> 0.03149606299 | V19: =IF(AND($R19<>"",Q19<>""),Q19*VLOOKUP($R19,$A$67:$B$69,2),"") -> 0 | W19: =IF(R19<>"",IF(R19=$A$69,$A$68,$A$69),"") -> inch
A20: LIN | B20: TDK Corp | C20: C1608X7R1H104K | D20: =1+LEN(F20)-LEN(SUBSTITUTE(F20,",","")) -> 1 | E20: =IF(F20<>"",LEFT(F20,1),"Z") -> C | F20: C304 | G20: 0.1uF, 50v, 10%, Cer | H20: 0603 | I20: -55, +125 | J20: 0.018 | K20: 250 | L20: =D20*J20 -> 0.018 | M20: Digi-Key | N20: =VLOOKUP($H20,$A$73:$G$101,2,FALSE) -> 1.6 | O20: =VLOOKUP($H20,$A$73:$G$101,3, FALSE) -> 0.8 | P20: =VLOOKUP($H20,$A$73:$G$101,4,FALSE) -> 0.8 | Q20: =VLOOKUP($H20,$A$73:$G$101,5,TRUE) -> 0 | R20: mm | S20: =IF(AND($R20<>"",N20<>""),N20*VLOOKUP($R20,$A$67:$B$69,2),"") -> 0.06299212598 | T20: =IF(AND($R20<>"",O20<>""),O20*VLOOKUP($R20,$A$67:$B$69,2),"") -> 0.03149606299 | U20: =IF(AND($R20<>"",P20<>""),P20*VLOOKUP($R20,$A$67:$B$69,2),"") -> 0.03149606299 | V20: =IF(AND($R20<>"",Q20<>""),Q20*VLOOKUP($R20,$A$67:$B$69,2),"") -> 0 | W20: =IF(R20<>"",IF(R20=$A$69,$A$68,$A$69),"") -> inch
A21: +12v Clean Supply | B21: NXP | C21: BAS16,215 | D21: =1+LEN(F21)-LEN(SUBSTITUTE(F21,",","")) -> 1 | E21: =IF(F21<>"",LEFT(F21,1),"Z") -> D | F21: D201 | G21: 215mA, 100v, 250mW | H21: SOT-23 | I21: -65, +150 | J21: 0.04752 | K21: 250 | L21: =D21*J21 -> 0.04752 | M21: Digi-Key | N21: =VLOOKUP($H21,$A$73:$G$101,2,FALSE) -> 3.04 | O21: =VLOOKUP($H21,$A$73:$G$101,3, FALSE) -> 2.64 | P21: =VLOOKUP($H21,$A$73:$G$101,4,FALSE) -> 1.22 | Q21: =VLOOKUP($H21,$A$73:$G$101,5,TRUE) -> 0 | R21: mm | S21: =IF(AND($R21<>"",N21<>""),N21*VLOOKUP($R21,$A$67:$B$69,2),"") -> 0.1196850394 | T21: =IF(AND($R21<>"",O21<>""),O21*VLOOKUP($R21,$A$67:$B$69,2),"") -> 0.1039370079 | U21: =IF(AND($R21<>"",P21<>""),P21*VLOOKUP($R21,$A$67:$B$69,2),"") -> 0.04803149606 | V21: =IF(AND($R21<>"",Q21<>""),Q21*VLOOKUP($R21,$A$67:$B$69,2),"") -> 0 | W21: =IF(R21<>"",IF(R21=$A$69,$A$68,$A$69),"") -> inch
A22: +12v Supply | B22: On Semi | C22: MBRS360BT3G | D22: =1+LEN(F22)-LEN(SUBSTITUTE(F22,",","")) -> 1 | E22: =IF(F22<>"",LEFT(F22,1),"Z") -> D | F22: D202 | G22: 4A, 60v | H22: SMB | J22: 0.26048 | K22: 250 | L22: =D22*J22 -> 0.26048 | M22: Digi-Key | N22: =VLOOKUP($H22,$A$73:$G$101,2,FALSE) -> 7.1 | O22: =VLOOKUP($H22,$A$73:$G$101,3, FALSE) -> 6.1 | P22: =VLOOKUP($H22,$A$73:$G$101,4,FALSE) -> 2.41 | Q22: =VLOOKUP($H22,$A$73:$G$101,5,TRUE) -> 0 | R22: mm | S22: =IF(AND($R22<>"",N22<>""),N22*VLOOKUP($R22,$A$67:$B$69,2),"") -> 0.2795275591 | T22: =IF(AND($R22<>"",O22<>""),O22*VLOOKUP($R22,$A$67:$B$69,2),"") -> 0.2401574803 | U22: =IF(AND($R22<>"",P22<>""),P22*VLOOKUP($R22,$A$67:$B$69,2),"") -> 0.09488188976 | V22: =IF(AND($R22<>"",Q22<>""),Q22*VLOOKUP($R22,$A$67:$B$69,2),"") -> 0 | W22: =IF(R22<>"",IF(R22=$A$69,$A$68,$A$69),"") -> inch
A23: Micro | B23: Microchip | C23: PIC18F25K22-E/SO | D23: =1+LEN(F23)-LEN(SUBSTITUTE(F23,",","")) -> 1 | E23: =IF(F23<>"",LEFT(F23,1),"Z") -> I | F23: IC101 | G23: PIC Microprocessor | H23: SOIC-28 | I23: -65, +150 | J23: 2.08 | K23: 300 | L23: =D23*J23 -> 2.08 | M23: Digi-Key | N23: =VLOOKUP($H23,$A$73:$G$101,2,FALSE) -> 17.9 | O23: =VLOOKUP($H23,$A$73:$G$101,3, FALSE) -> 10.3 | P23: =VLOOKUP($H23,$A$73:$G$101,4,FALSE) -> 2.65 | Q23: =VLOOKUP($H23,$A$73:$G$101,5,TRUE) -> 0 | R23: mm | S23: =IF(AND($R23<>"",N23<>""),N23*VLOOKUP($R23,$A$67:$B$69,2),"") -> 0.7047244094 | T23: =IF(AND($R23<>"",O23<>""),O23*VLOOKUP($R23,$A$67:$B$69,2),"") -> 0.405511811 | U23: =IF(AND($R23<>"",P23<>""),P23*VLOOKUP($R23,$A$67:$B$69,2),"") -> 0.1043307087 | V23: =IF(AND($R23<>"",Q23<>""),Q23*VLOOKUP($R23,$A$67:$B$69,2),"") -> 0 | W23: =IF(R23<>"",IF(R23=$A$69,$A$68,$A$69),"") -> inch
A24: +12v Clean Supply | B24: TI | C24: TPS7A1601DGNR | D24: =1+LEN(F24)-LEN(SUBSTITUTE(F24,",","")) -> 1 | E24: =IF(F24<>"",LEFT(F24,1),"Z") -> I | F24: IC201 | G24: 12v Low, Power Regulator | H24: MSOP-8 | I24: -40, +125 | J24: 2.674 | K24: 250 | L24: =D24*J24 -> 2.674 | M24: Digi-Key | N24: =VLOOKUP($H24,$A$73:$G$101,2,FALSE) -> 5 | O24: =VLOOKUP($H24,$A$73:$G$101,3, FALSE) -> 3 | P24: =VLOOKUP($H24,$A$73:$G$101,4,FALSE) -> 1.1 | Q24: =VLOOKUP($H24,$A$73:$G$101,5,TRUE) -> 0 | R24: mm | S24: =IF(AND($R24<>"",N24<>""),N24*VLOOKUP($R24,$A$67:$B$69,2),"") -> 0.1968503937 | T24: =IF(AND($R24<>"",O24<>""),O24*VLOOKUP($R24,$A$67:$B$69,2),"") -> 0.1181102362 | U24: =IF(AND($R24<>"",P24<>""),P24*VLOOKUP($R24,$A$67:$B$69,2),"") -> 0.04330708661 | V24: =IF(AND($R24<>"",Q24<>""),Q24*VLOOKUP($R24,$A$67:$B$69,2),"") -> 0 | W24: =IF(R24<>"",IF(R24=$A$69,$A$68,$A$69),"") -> inch
A25: +12v Supply | B25: Linear Tech | C25: LT3690EUFE#PBF | D25: =1+LEN(F25)-LEN(SUBSTITUTE(F25,",","")) -> 1 | E25: =IF(F25<>"",LEFT(F25,1),"Z") -> I | F25: IC202 | G25: LTC3690 Switching P.S. | H25: 26-WFQFN | I25: -40, +125 | J25: 6.01 | K25: 100 | L25: =D25*J25 -> 6.01 | M25: Digi-Key | N25: =VLOOKUP($H25,$A$73:$G$101,2,FALSE) -> 6 | O25: =VLOOKUP($H25,$A$73:$G$101,3, FALSE) -> 4 | P25: =VLOOKUP($H25,$A$73:$G$101,4,FALSE) -> 0.74 | Q25: =VLOOKUP($H25,$A$73:$G$101,5,TRUE) -> 0 | R25: mm | S25: =IF(AND($R25<>"",N25<>""),N25*VLOOKUP($R25,$A$67:$B$69,2),"") -> 0.2362204724 | T25: =IF(AND($R25<>"",O25<>""),O25*VLOOKUP($R25,$A$67:$B$69,2),"") -> 0.157480315 | U25: =IF(AND($R25<>"",P25<>""),P25*VLOOKUP($R25,$A$67:$B$69,2),"") -> 0.02913385827 | V25: =IF(AND($R25<>"",Q25<>""),Q25*VLOOKUP($R25,$A$67:$B$69,2),"") -> 0 | W25: =IF(R25<>"",IF(R25=$A$69,$A$68,$A$69),"") -> inch
A26: +3.3v Supply | B26: Micrel | C26: MIC5205-3.3YM5 TR | D26: =1+LEN(F26)-LEN(SUBSTITUTE(F26,",","")) -> 1 | E26: =IF(F26<>"",LEFT(F26,1),"Z") -> I | F26: IC203 | G26: 3.3v Regulator - 16v input | H26: SOT-23-5 | I26: -40, +125 | J26: 0.572 | K26: 250 | L26: =D26*J26 -> 0.572 | M26: Digi-Key | N26: =VLOOKUP($H26,$A$73:$G$101,2,FALSE) -> 3.04 | O26: =VLOOKUP($H26,$A$73:$G$101,3, FALSE) -> 3 | P26: =VLOOKUP($H26,$A$73:$G$101,4,FALSE) -> 1.3 | Q26: =VLOOKUP($H26,$A$73:$G$101,5,TRUE) -> 0 | R26: mm | S26: =IF(AND($R26<>"",N26<>""),N26*VLOOKUP($R26,$A$67:$B$69,2),"") -> 0.1196850394 | T26: =IF(AND($R26<>"",O26<>""),O26*VLOOKUP($R26,$A$67:$B$69,2),"") -> 0.1181102362 | U26: =IF(AND($R26<>"",P26<>""),P26*VLOOKUP($R26,$A$67:$B$69,2),"") -> 0.05118110236 | V26: =IF(AND($R26<>"",Q26<>""),Q26*VLOOKUP($R26,$A$67:$B$69,2),"") -> 0 | W26: =IF(R26<>"",IF(R26=$A$69,$A$68,$A$69),"") -> inch
A27: Motor | B27: Infineon | C27: TLE5205-2G | D27: =1+LEN(F27)-LEN(SUBSTITUTE(F27,",","")) -> 1 | E27: =IF(F27<>"",LEFT(F27,1),"Z") -> I | F27: IC301 | G27: H-Bridge | H27: TO-263 | I27: -40, +150 | J27: 4.919 | K27: 100 | L27: =D27*J27 -> 4.919 | M27: Digi-Key | N27: =VLOOKUP($H27,$A$73:$G$101,2,FALSE) -> 15 | O27: =VLOOKUP($H27,$A$73:$G$101,3, FALSE) -> 10 | P27: =VLOOKUP($H27,$A$73:$G$101,4,FALSE) -> 4.4 | Q27: =VLOOKUP($H27,$A$73:$G$101,5,TRUE) -> 0 | R27: mm | S27: =IF(AND($R27<>"",N27<>""),N27*VLOOKUP($R27,$A$67:$B$69,2),"") -> 0.5905511811 | T27: =IF(AND($R27<>"",O27<>""),O27*VLOOKUP($R27,$A$67:$B$69,2),"") -> 0.3937007874 | U27: =IF(AND($R27<>"",P27<>""),P27*VLOOKUP($R27,$A$67:$B$69,2),"") -> 0.1732283465 | V27: =IF(AND($R27<>"",Q27<>""),Q27*VLOOKUP($R27,$A$67:$B$69,2),"") -> 0 | W27: =IF(R27<>"",IF(R27=$A$69,$A$68,$A$69),"") -> inch
A28: Wake Out | B28: Infineon | C28: BSP452 | D28: =1+LEN(F28)-LEN(SUBSTITUTE(F28,",","")) -> 1 | E28: =IF(F28<>"",LEFT(F28,1),"Z") -> I | F28: IC302 | G28: High side switch | H28: SOT-223 | I28: -40, +150 | J28: 1.2824 | K28: 100 | L28: =D28*J28 -> 1.2824 | M28: Digi-Key | N28: =VLOOKUP($H28,$A$73:$G$101,2,FALSE) -> 6.5 | O28: =VLOOKUP($H28,$A$73:$G$101,3, FALSE) -> 7 | P28: =VLOOKUP($H28,$A$73:$G$101,4,FALSE) -> 1.7 | Q28: =VLOOKUP($H28,$A$73:$G$101,5,TRUE) -> 0 | R28: mm | S28: =IF(AND($R28<>"",N28<>""),N28*VLOOKUP($R28,$A$67:$B$69,2),"") -> 0.2559055118 | T28: =IF(AND($R28<>"",O28<>""),O28*VLOOKUP($R28,$A$67:$B$69,2),"") -> 0.2755905512 | U28: =IF(AND($R28<>"",P28<>""),P28*VLOOKUP($R28,$A$67:$B$69,2),"") -> 0.06692913386 | V28: =IF(AND($R28<>"",Q28<>""),Q28*VLOOKUP($R28,$A$67:$B$69,2),"") -> 0 | W28: =IF(R28<>"",IF(R28=$A$69,$A$68,$A$69),"") -> inch
A29: LIN | B29: Infineon | C29: TLE7259-2GU | D29: =1+LEN(F29)-LEN(SUBSTITUTE(F29,",","")) -> 1 | E29: =IF(F29<>"",LEFT(F29,1),"Z") -> I | F29: IC303 | G29: LIN Transceiver | H29: 8-SOIC | I29: -40, +150 | J29: 1.10472 | K29: 100 | L29: =D29*J29 -> 1.10472 | M29: Digi-Key | N29: =VLOOKUP($H29,$A$73:$G$101,2,FALSE) -> 5 | O29: =VLOOKUP($H29,$A$73:$G$101,3, FALSE) -> 6 | P29: =VLOOKUP($H29,$A$73:$G$101,4,FALSE) -> 1.75 | Q29: =VLOOKUP($H29,$A$73:$G$101,5,TRUE) -> 0 | R29: mm | S29: =IF(AND($R29<>"",N29<>""),N29*VLOOKUP($R29,$A$67:$B$69,2),"") -> 0.1968503937 | T29: =IF(AND($R29<>"",O29<>""),O29*VLOOKUP($R29,$A$67:$B$69,2),"") -> 0.2362204724 | U29: =IF(AND($R29<>"",P29<>""),P29*VLOOKUP($R29,$A$67:$B$69,2),"") -> 0.0688976378 | V29: =IF(AND($R29<>"",Q29<>""),Q29*VLOOKUP($R29,$A$67:$B$69,2),"") -> 0 | W29: =IF(R29<>"",IF(R29=$A$69,$A$68,$A$69),"") -> inch
A30: Keypad | B30: FCI | C30: SFW8S-2STME1LF | D30: =1+LEN(F30)-LEN(SUBSTITUTE(F30,",","")) -> 1 | E30: =IF(F30<>"",LEFT(F30,1),"Z") -> J | F30: J101 | G30: 8-pin flex cable connector | H30: SFW8S | J30: 0.596 | K30: 250 | L30: =D30*J30 -> 0.596 | M30: Digi-Key | N30: =VLOOKUP($H30,$A$73:$G$101,2,FALSE) -> 14.4 | O30: =VLOOKUP($H30,$A$73:$G$101,3, FALSE) -> 3.6 | P30: =VLOOKUP($H30,$A$73:$G$101,4,FALSE) -> 5.3 | Q30: =VLOOKUP($H30,$A$73:$G$101,5,TRUE) -> 0 | R30: mm | S30: =IF(AND($R30<>"",N30<>""),N30*VLOOKUP($R30,$A$67:$B$69,2),"") -> 0.5669291339 | T30: =IF(AND($R30<>"",O30<>""),O30*VLOOKUP($R30,$A$67:$B$69,2),"") -> 0.1417322835 | U30: =IF(AND($R30<>"",P30<>""),P30*VLOOKUP($R30,$A$67:$B$69,2),"") -> 0.2086614173 | V30: =IF(AND($R30<>"",Q30<>""),Q30*VLOOKUP($R30,$A$67:$B$69,2),"") -> 0 | W30: =IF(R30<>"",IF(R30=$A$69,$A$68,$A$69),"") -> inch
A31: Micro | B31: Sullins | C31: LPPB032NFSS-RC | D31: =1+LEN(F31)-LEN(SUBSTITUTE(F31,",","")) -> 1 | E31: =IF(F31<>"",LEFT(F31,1),"Z") -> J | F31: J102 | G31: 6-Pin Programming connector | H31: Sullins-6PS | J31: 0.65452 | K31: 250 | L31: =D31*J31 -> 0.65452 | M31: Digi-Key | N31: =VLOOKUP($H31,$A$73:$G$101,2,FALSE) -> 4.21 | O31: =VLOOKUP($H31,$A$73:$G$101,3, FALSE) -> 3.1 | P31: =VLOOKUP($H31,$A$73:$G$101,4,FALSE) -> 4.5 | Q31: =VLOOKUP($H31,$A$73:$G$101,5,TRUE) -> 0 | R31: mm | S31: =IF(AND($R31<>"",N31<>""),N31*VLOOKUP($R31,$A$67:$B$69,2),"") -> 0.1657480315 | T31: =IF(AND($R31<>"",O31<>""),O31*VLOOKUP($R31,$A$67:$B$69,2),"") -> 0.1220472441 | U31: =IF(AND($R31<>"",P31<>""),P31*VLOOKUP($R31,$A$67:$B$69,2),"") -> 0.1771653543 | V31: =IF(AND($R31<>"",Q31<>""),Q31*VLOOKUP($R31,$A$67:$B$69,2),"") -> 0 | W31: =IF(R31<>"",IF(R31=$A$69,$A$68,$A$69),"") -> inch
A32: Development | B32: Panasonic | C32: LNJ308G8LRA | D32: =1+LEN(F32)-LEN(SUBSTITUTE(F32,",","")) -> 2 | E32: =IF(F32<>"",LEFT(F32,1),"Z") -> L | F32: LED101,LED102 | G32: Green LEDs (-30 to +85) (DEVELOPMENT) | H32: 0603 | I32: -30, +85 | J32: 0.139 | K32: 250 | L32: =D32*J32 -> 0.278 | M32: Digi-Key | N32: =VLOOKUP($H32,$A$73:$G$101,2,FALSE) -> 1.6 | O32: =VLOOKUP($H32,$A$73:$G$101,3, FALSE) -> 0.8 | P32: =VLOOKUP($H32,$A$73:$G$101,4,FALSE) -> 0.8 | Q32: =VLOOKUP($H32,$A$73:$G$101,5,TRUE) -> 0 | R32: mm | S32: =IF(AND($R32<>"",N32<>""),N32*VLOOKUP($R32,$A$67:$B$69,2),"") -> 0.06299212598 | T32: =IF(AND($R32<>"",O32<>""),O32*VLOOKUP($R32,$A$67:$B$69,2),"") -> 0.03149606299 | U32: =IF(AND($R32<>"",P32<>""),P32*VLOOKUP($R32,$A$67:$B$69,2),"") -> 0.03149606299 | V32: =IF(AND($R32<>"",Q32<>""),Q32*VLOOKUP($R32,$A$67:$B$69,2),"") -> 0 | W32: =IF(R32<>"",IF(R32=$A$69,$A$68,$A$69),"") -> inch
A33: Motor | B33: Mabuchi | C33: FC280SC-20150 | E33: =IF(F33<>"",LEFT(F33,1),"Z") -> M | F33: Motor | G33: Motor | H33: MabuchiMotor | J33: 1.95 | K33: 100 | L33: =D33*J33 -> 0 | M33: Kysan | N33: =VLOOKUP($H33,$A$73:$G$101,2,FALSE) -> 45 | O33: =VLOOKUP($H33,$A$73:$G$101,3, FALSE) -> 24.2 | P33: =VLOOKUP($H33,$A$73:$G$101,4,FALSE) -> 18.3 | Q33: =VLOOKUP($H33,$A$73:$G$101,5,TRUE) -> 0 | R33: mm | S33: =IF(AND($R33<>"",N33<>""),N33*VLOOKUP($R33,$A$67:$B$69,2),"") -> 1.771653543 | T33: =IF(AND($R33<>"",O33<>""),O33*VLOOKUP($R33,$A$67:$B$69,2),"") -> 0.9527559055 | U33: =IF(AND($R33<>"",P33<>""),P33*VLOOKUP($R33,$A$67:$B$69,2),"") -> 0.7204724409 | V33: =IF(AND($R33<>"",Q33<>""),Q33*VLOOKUP($R33,$A$67:$B$69,2),"") -> 0 | W33: =IF(R33<>"",IF(R33=$A$69,$A$68,$A$69),"") -> inch
A34: Keypad | B34: Fairchild | C34: MMBT3904 | D34: =1+LEN(F34)-LEN(SUBSTITUTE(F34,",","")) -> 1 | E34: =IF(F34<>"",LEFT(F34,1),"Z") -> Q | F34: Q101 | G34: NPN, 100 mA, 40v, Beta 100 | H34: SOT-23 | I34: -55, +150 | J34: 0.05732 | K34: 250 | L34: =D34*J34 -> 0.05732 | M34: Digi-Key | N34: =VLOOKUP($H34,$A$73:$G$101,2,FALSE) -> 3.04 | O34: =VLOOKUP($H34,$A$73:$G$101,3, FALSE) -> 2.64 | P34: =VLOOKUP($H34,$A$73:$G$101,4,FALSE) -> 1.22 | Q34: =VLOOKUP($H34,$A$73:$G$101,5,TRUE) -> 0 | R34: mm | S34: =IF(AND($R34<>"",N34<>""),N34*VLOOKUP($R34,$A$67:$B$69,2),"") -> 0.1196850394 | T34: =IF(AND($R34<>"",O34<>""),O34*VLOOKUP($R34,$A$67:$B$69,2),"") -> 0.1039370079 | U34: =IF(AND($R34<>"",P34<>""),P34*VLOOKUP($R34,$A$67:$B$69,2),"") -> 0.04803149606 | V34: =IF(AND($R34<>"",Q34<>""),Q34*VLOOKUP($R34,$A$67:$B$69,2),"") -> 0 | W34: =IF(R34<>"",IF(R34=$A$69,$A$68,$A$69),"") -> inch
A35: Keypad | B35: Panasonic | C35: ERJ-2RKF1582X | D35: =1+LEN(F35)-LEN(SUBSTITUTE(F35,",","")) -> 1 | E35: =IF(F35<>"",LEFT(F35,1),"Z") -> R | F35: R101 | G35: 15.8K, 0.1W, 1% | H35: 0402 | I35: -55, +125 | J35: 0.01364 | K35: 250 | L35: =D35*J35 -> 0.01364 | M35: Digi-Key | N35: =VLOOKUP($H35,$A$73:$G$101,2,FALSE) -> 1 | O35: =VLOOKUP($H35,$A$73:$G$101,3, FALSE) -> 0.5 | P35: =VLOOKUP($H35,$A$73:$G$101,4,FALSE) -> 0.4 | Q35: =VLOOKUP($H35,$A$73:$G$101,5,TRUE) -> 0 | R35: mm | S35: =IF(AND($R35<>"",N35<>""),N35*VLOOKUP($R35,$A$67:$B$69,2),"") -> 0.03937007874 | T35: =IF(AND($R35<>"",O35<>""),O35*VLOOKUP($R35,$A$67:$B$69,2),"") -> 0.01968503937 | U35: =IF(AND($R35<>"",P35<>""),P35*VLOOKUP($R35,$A$67:$B$69,2),"") -> 0.0157480315 | V35: =IF(AND($R35<>"",Q35<>""),Q35*VLOOKUP($R35,$A$67:$B$69,2),"") -> 0 | W35: =IF(R35<>"",IF(R35=$A$69,$A$68,$A$69),"") -> inch
A36: Keypad | B36: Panasonic | C36: ERJ-2RKF1001X | D36: =1+LEN(F36)-LEN(SUBSTITUTE(F36,",","")) -> 5 | E36: =IF(F36<>"",LEFT(F36,1),"Z") -> R | F36: R102,R103,R104,R105,R106 | G36: 1K, 0.1W, 1% | H36: 0402 | I36: -55, +125 | J36: 0.01364 | K36: 250 | L36: =D36*J36 -> 0.0682 | M36: Digi-Key | N36: =VLOOKUP($H36,$A$73:$G$101,2,FALSE) -> 1 | O36: =VLOOKUP($H36,$A$73:$G$101,3, FALSE) -> 0.5 | P36: =VLOOKUP($H36,$A$73:$G$101,4,FALSE) -> 0.4 | Q36: =VLOOKUP($H36,$A$73:$G$101,5,TRUE) -> 0 | R36: mm | S36: =IF(AND($R36<>"",N36<>""),N36*VLOOKUP($R36,$A$67:$B$69,2),"") -> 0.03937007874 | T36: =IF(AND($R36<>"",O36<>""),O36*VLOOKUP($R36,$A$67:$B$69,2),"") -> 0.01968503937 | U36: =IF(AND($R36<>"",P36<>""),P36*VLOOKUP($R36,$A$67:$B$69,2),"") -> 0.0157480315 | V36: =IF(AND($R36<>"",Q36<>""),Q36*VLOOKUP($R36,$A$67:$B$69,2),"") -> 0 | W36: =IF(R36<>"",IF(R36=$A$69,$A$68,$A$69),"") -> inch
A37: Micro | B37: Panasonic | C37: ERJ-2RKF1000X | D37: =1+LEN(F37)-LEN(SUBSTITUTE(F37,",","")) -> 1 | E37: =IF(F37<>"",LEFT(F37,1),"Z") -> R | F37: R107 | G37: 100R, 0.1W, 1% | H37: 0402 | I37: -55, +125 | J37: 0.01364 | K37: 250 | L37: =D37*J37 -> 0.01364 | M37: Digi-Key | N37: =VLOOKUP($H37,$A$73:$G$101,2,FALSE) -> 1 | O37: =VLOOKUP($H37,$A$73:$G$101,3, FALSE) -> 0.5 | P37: =VLOOKUP($H37,$A$73:$G$101,4,FALSE) -> 0.4 | Q37: =VLOOKUP($H37,$A$73:$G$101,5,TRUE) -> 0 | R37: mm | S37: =IF(AND($R37<>"",N37<>""),N37*VLOOKUP($R37,$A$67:$B$69,2),"") -> 0.03937007874 | T37: =IF(AND($R37<>"",O37<>""),O37*VLOOKUP($R37,$A$67:$B$69,2),"") -> 0.01968503937 | U37: =IF(AND($R37<>"",P37<>""),P37*VLOOKUP($R37,$A$67:$B$69,2),"") -> 0.0157480315 | V37: =IF(AND($R37<>"",Q37<>""),Q37*VLOOKUP($R37,$A$67:$B$69,2),"") -> 0 | W37: =IF(R37<>"",IF(R37=$A$69,$A$68,$A$69),"") -> inch
A38: Development | B38: Panasonic | C38: ERJ-2RKF3400X | D38: =1+LEN(F38)-LEN(SUBSTITUTE(F38,",","")) -> 2 | E38: =IF(F38<>"",LEFT(F38,1),"Z") -> R | F38: R109,R110 | G38: 340R, 0.1W, 1% (DEVELOPMENT) | H38: 0402 | I38: -55, +125 | J38: 0.01364 | K38: 250 | L38: =D38*J38 -> 0.02728 | M38: Digi-Key | N38: =VLOOKUP($H38,$A$73:$G$101,2,FALSE) -> 1 | O38: =VLOOKUP($H38,$A$73:$G$101,3, FALSE) -> 0.5 | P38: =VLOOKUP($H38,$A$73:$G$101,4,FALSE) -> 0.4 | Q38: =VLOOKUP($H38,$A$73:$G$101,5,TRUE) -> 0 | R38: mm | S38: =IF(AND($R38<>"",N38<>""),N38*VLOOKUP($R38,$A$67:$B$69,2),"") -> 0.03937007874 | T38: =IF(AND($R38<>"",O38<>""),O38*VLOOKUP($R38,$A$67:$B$69,2),"") -> 0.01968503937 | U38: =IF(AND($R38<>"",P38<>""),P38*VLOOKUP($R38,$A$67:$B$69,2),"") -> 0.0157480315 | V38: =IF(AND($R38<>"",Q38<>""),Q38*VLOOKUP($R38,$A$67:$B$69,2),"") -> 0 | W38: =IF(R38<>"",IF(R38=$A$69,$A$68,$A$69),"") -> inch
A39: +12v Shutdown | B39: Panasonic | C39: ERJ-2RKF1003X | D39: =1+LEN(F39)-LEN(SUBSTITUTE(F39,",","")) -> 1 | E39: =IF(F39<>"",LEFT(F39,1),"Z") -> R | F39: R112 | G39: 100K, 0.1W, 1% | H39: 0402 | I39: -55, +125 | J39: 0.01364 | K39: 250 | L39: =D39*J39 -> 0.01364 | M39: Digi-Key | N39: =VLOOKUP($H39,$A$73:$G$101,2,FALSE) -> 1 | O39: =VLOOKUP($H39,$A$73:$G$101,3, FALSE) -> 0.5 | P39: =VLOOKUP($H39,$A$73:$G$101,4,FALSE) -> 0.4 | Q39: =VLOOKUP($H39,$A$73:$G$101,5,TRUE) -> 0 | R39: mm | S39: =IF(AND($R39<>"",N39<>""),N39*VLOOKUP($R39,$A$67:$B$69,2),"") -> 0.03937007874 | T39: =IF(AND($R39<>"",O39<>""),O39*VLOOKUP($R39,$A$67:$B$69,2),"") -> 0.01968503937 | U39: =IF(AND($R39<>"",P39<>""),P39*VLOOKUP($R39,$A$67:$B$69,2),"") -> 0.0157480315 | V39: =IF(AND($R39<>"",Q39<>""),Q39*VLOOKUP($R39,$A$67:$B$69,2),"") -> 0 | W39: =IF(R39<>"",IF(R39=$A$69,$A$68,$A$69),"") -> inch
A40: Micro | B40: Panasonic | C40: ERJ-2RKF7502X | D40: =1+LEN(F40)-LEN(SUBSTITUTE(F40,",","")) -> 1 | E40: =IF(F40<>"",LEFT(F40,1),"Z") -> R | F40: R113 | G40: 75K, 0.1W, 1% | H40: 0402 | I40: -55, +125 | J40: 0.01364 | K40: 250 | L40: =D40*J40 -> 0.01364 | M40: Digi-Key | N40: =VLOOKUP($H40,$A$73:$G$101,2,FALSE) -> 1 | O40: =VLOOKUP($H40,$A$73:$G$101,3, FALSE) -> 0.5 | P40: =VLOOKUP($H40,$A$73:$G$101,4,FALSE) -> 0.4 | Q40: =VLOOKUP($H40,$A$73:$G$101,5,TRUE) -> 0 | R40: mm | S40: =IF(AND($R40<>"",N40<>""),N40*VLOOKUP($R40,$A$67:$B$69,2),"") -> 0.03937007874 | T40: =IF(AND($R40<>"",O40<>""),O40*VLOOKUP($R40,$A$67:$B$69,2),"") -> 0.01968503937 | U40: =IF(AND($R40<>"",P40<>""),P40*VLOOKUP($R40,$A$67:$B$69,2),"") -> 0.0157480315 | V40: =IF(AND($R40<>"",Q40<>""),Q40*VLOOKUP($R40,$A$67:$B$69,2),"") -> 0 | W40: =IF(R40<>"",IF(R40=$A$69,$A$68,$A$69),"") -> inch
A41: Micro | B41: Panasonic | C41: ERJ-2RKF1003X | D41: =1+LEN(F41)-LEN(SUBSTITUTE(F41,",","")) -> 4 | E41: =IF(F41<>"",LEFT(F41,1),"Z") -> R | F41: R114,R115,R116,R117 | G41: 100K, 0.1W, 1% | H41: 0402 | I41: -55, +125 | J41: 0.01364 | K41: 250 | L41: =D41*J41 -> 0.05456 | M41: Digi-Key | N41: =VLOOKUP($H41,$A$73:$G$101,2,FALSE) -> 1 | O41: =VLOOKUP($H41,$A$73:$G$101,3, FALSE) -> 0.5 | P41: =VLOOKUP($H41,$A$73:$G$101,4,FALSE) -> 0.4 | Q41: =VLOOKUP($H41,$A$73:$G$101,5,TRUE) -> 0 | R41: mm | S41: =IF(AND($R41<>"",N41<>""),N41*VLOOKUP($R41,$A$67:$B$69,2),"") -> 0.03937007874 | T41: =IF(AND($R41<>"",O41<>""),O41*VLOOKUP($R41,$A$67:$B$69,2),"") -> 0.01968503937 | U41: =IF(AND($R41<>"",P41<>""),P41*VLOOKUP($R41,$A$67:$B$69,2),"") -> 0.0157480315 | V41: =IF(AND($R41<>"",Q41<>""),Q41*VLOOKUP($R41,$A$67:$B$69,2),"") -> 0 | W41: =IF(R41<>"",IF(R41=$A$69,$A$68,$A$69),"") -> inch
A42: Sense | B42: Panasonic | C42: ERJ-2RKF1003X | D42: =1+LEN(F42)-LEN(SUBSTITUTE(F42,",","")) -> 2 | E42: =IF(F42<>"",LEFT(F42,1),"Z") -> R | F42: R203,R208 | G42: 100K, 0.1W, 1% | H42: 0402 | I42: -55, +125 | J42: 0.01364 | K42: 250 | L42: =D42*J42 -> 0.02728 | M42: Digi-Key | N42: =VLOOKUP($H42,$A$73:$G$101,2,FALSE) -> 1 | O42: =VLOOKUP($H42,$A$73:$G$101,3, FALSE) -> 0.5 | P42: =VLOOKUP($H42,$A$73:$G$101,4,FALSE) -> 0.4 | Q42: =VLOOKUP($H42,$A$73:$G$101,5,TRUE) -> 0 | R42: mm | S42: =IF(AND($R42<>"",N42<>""),N42*VLOOKUP($R42,$A$67:$B$69,2),"") -> 0.03937007874 | T42: =IF(AND($R42<>"",O42<>""),O42*VLOOKUP($R42,$A$67:$B$69,2),"") -> 0.01968503937 | U42: =IF(AND($R42<>"",P42<>""),P42*VLOOKUP($R42,$A$67:$B$69,2),"") -> 0.0157480315 | V42: =IF(AND($R42<>"",Q42<>""),Q42*VLOOKUP($R42,$A$67:$B$69,2),"") -> 0 | W42: =IF(R42<>"",IF(R42=$A$69,$A$68,$A$69),"") -> inch
A43: Sense | B43: Panasonic | C43: ERJ-2RKF8871X | D43: =1+LEN(F43)-LEN(SUBSTITUTE(F43,",","")) -> 2 | E43: =IF(F43<>"",LEFT(F43,1),"Z") -> R | F43: R207,R209 | G43: 8870R, 0.1W, 1% | H43: 0402 | I43: -55, +125 | J43: 0.01364 | K43: 250 | L43: =D43*J43 -> 0.02728 | M43: Digi-Key | N43: =VLOOKUP($H43,$A$73:$G$101,2,FALSE) -> 1 | O43: =VLOOKUP($H43,$A$73:$G$101,3, FALSE) -> 0.5 | P43: =VLOOKUP($H43,$A$73:$G$101,4,FALSE) -> 0.4 | Q43: =VLOOKUP($H43,$A$73:$G$101,5,TRUE) -> 0 | R43: mm | S43: =IF(AND($R43<>"",N43<>""),N43*VLOOKUP($R43,$A$67:$B$69,2),"") -> 0.03937007874 | T43: =IF(AND($R43<>"",O43<>""),O43*VLOOKUP($R43,$A$67:$B$69,2),"") -> 0.01968503937 | U43: =IF(AND($R43<>"",P43<>""),P43*VLOOKUP($R43,$A$67:$B$69,2),"") -> 0.0157480315 | V43: =IF(AND($R43<>"",Q43<>""),Q43*VLOOKUP($R43,$A$67:$B$69,2),"") -> 0 | W43: =IF(R43<>"",IF(R43=$A$69,$A$68,$A$69),"") -> inch
A44: +12v Clean Supply | B44: Panasonic | C44: ERJ-2RKF1433X | D44: =1+LEN(F44)-LEN(SUBSTITUTE(F44,",","")) -> 1 | E44: =IF(F44<>"",LEFT(F44,1),"Z") -> R | F44: R210 | G44: 143K, 0.1W, 1% | H44: 0402 | J44: 0.01364 | K44: 250 | L44: =D44*J44 -> 0.01364 | M44: Digi-Key | N44: =VLOOKUP($H44,$A$73:$G$101,2,FALSE) -> 1 | O44: =VLOOKUP($H44,$A$73:$G$101,3, FALSE) -> 0.5 | P44: =VLOOKUP($H44,$A$73:$G$101,4,FALSE) -> 0.4 | Q44: =VLOOKUP($H44,$A$73:$G$101,5,TRUE) -> 0 | R44: mm | S44: =IF(AND($R44<>"",N44<>""),N44*VLOOKUP($R44,$A$67:$B$69,2),"") -> 0.03937007874 | T44: =IF(AND($R44<>"",O44<>""),O44*VLOOKUP($R44,$A$67:$B$69,2),"") -> 0.01968503937 | U44: =IF(AND($R44<>"",P44<>""),P44*VLOOKUP($R44,$A$67:$B$69,2),"") -> 0.0157480315 | V44: =IF(AND($R44<>"",Q44<>""),Q44*VLOOKUP($R44,$A$67:$B$69,2),"") -> 0 | W44: =IF(R44<>"",IF(R44=$A$69,$A$68,$A$69),"") -> inch
A45: +12v Clean Supply | B45: Panasonic | C45: ERJ-2RKF1582X | D45: =1+LEN(F45)-LEN(SUBSTITUTE(F45,",","")) -> 1 | E45: =IF(F45<>"",LEFT(F45,1),"Z") -> R | F45: R211 | G45: 15.8K, 0.1W, 1% | H45: 0402 | J45: 0.01364 | K45: 250 | L45: =D45*J45 -> 0.01364 | M45: Digi-Key | N45: =VLOOKUP($H45,$A$73:$G$101,2,FALSE) -> 1 | O45: =VLOOKUP($H45,$A$73:$G$101,3, FALSE) -> 0.5 | P45: =VLOOKUP($H45,$A$73:$G$101,4,FALSE) -> 0.4 | Q45: =VLOOKUP($H45,$A$73:$G$101,5,TRUE) -> 0 | R45: mm | S45: =IF(AND($R45<>"",N45<>""),N45*VLOOKUP($R45,$A$67:$B$69,2),"") -> 0.03937007874 | T45: =IF(AND($R45<>"",O45<>""),O45*VLOOKUP($R45,$A$67:$B$69,2),"") -> 0.01968503937 | U45: =IF(AND($R45<>"",P45<>""),P45*VLOOKUP($R45,$A$67:$B$69,2),"") -> 0.0157480315 | V45: =IF(AND($R45<>"",Q45<>""),Q45*VLOOKUP($R45,$A$67:$B$69,2),"") -> 0 | W45: =IF(R45<>"",IF(R45=$A$69,$A$68,$A$69),"") -> inch
A46: +12v Supply | B46: Panasonic | C46: ERJ-2RKF1001X | D46: =1+LEN(F46)-LEN(SUBSTITUTE(F46,",","")) -> 1 | E46: =IF(F46<>"",LEFT(F46,1),"Z") -> R | F46: R212 | G46: 1K, 0.1W, 1% | H46: 0402 | I46: -55, +125 | J46: 0.01364 | K46: 250 | L46: =D46*J46 -> 0.01364 | M46: Digi-Key | N46: =VLOOKUP($H46,$A$73:$G$101,2,FALSE) -> 1 | O46: =VLOOKUP($H46,$A$73:$G$101,3, FALSE) -> 0.5 | P46: =VLOOKUP($H46,$A$73:$G$101,4,FALSE) -> 0.4 | Q46: =VLOOKUP($H46,$A$73:$G$101,5,TRUE) -> 0 | R46: mm | S46: =IF(AND($R46<>"",N46<>""),N46*VLOOKUP($R46,$A$67:$B$69,2),"") -> 0.03937007874 | T46: =IF(AND($R46<>"",O46<>""),O46*VLOOKUP($R46,$A$67:$B$69,2),"") -> 0.01968503937 | U46: =IF(AND($R46<>"",P46<>""),P46*VLOOKUP($R46,$A$67:$B$69,2),"") -> 0.0157480315 | V46: =IF(AND($R46<>"",Q46<>""),Q46*VLOOKUP($R46,$A$67:$B$69,2),"") -> 0 | W46: =IF(R46<>"",IF(R46=$A$69,$A$68,$A$69),"") -> inch
A47: +12v Supply | B47: Panasonic | C47: ERJ-2RKF1003X | D47: =1+LEN(F47)-LEN(SUBSTITUTE(F47,",","")) -> 1 | E47: =IF(F47<>"",LEFT(F47,1),"Z") -> R | F47: R213 | G47: 100K, 0.1W, 1% | H47: 0402 | I47: -55, +125 | J47: 0.01364 | K47: 250 | L47: =D47*J47 -> 0.01364 | M47: Digi-Key | N47: =VLOOKUP($H47,$A$73:$G$101,2,FALSE) -> 1 | O47: =VLOOKUP($H47,$A$73:$G$101,3, FALSE) -> 0.5 | P47: =VLOOKUP($H47,$A$73:$G$101,4,FALSE) -> 0.4 | Q47: =VLOOKUP($H47,$A$73:$G$101,5,TRUE) -> 0 | R47: mm | S47: =IF(AND($R47<>"",N47<>""),N47*VLOOKUP($R47,$A$67:$B$69,2),"") -> 0.03937007874 | T47: =IF(AND($R47<>"",O47<>""),O47*VLOOKUP($R47,$A$67:$B$69,2),"") -> 0.01968503937 | U47: =IF(AND($R47<>"",P47<>""),P47*VLOOKUP($R47,$A$67:$B$69,2),"") -> 0.0157480315 | V47: =IF(AND($R47<>"",Q47<>""),Q47*VLOOKUP($R47,$A$67:$B$69,2),"") -> 0 | W47: =IF(R47<>"",IF(R47=$A$69,$A$68,$A$69),"") -> inch
A48: +12v Supply | B48: Panasonic | C48: ERJ-2RKF2152X | D48: =1+LEN(F48)-LEN(SUBSTITUTE(F48,",","")) -> 1 | E48: =IF(F48<>"",LEFT(F48,1),"Z") -> R | F48: R214 | G48: 21.5K, 0.1W, 1% | H48: 0402 | J48: 0.01364 | K48: 250 | L48: =D48*J48 -> 0.01364 | M48: Digi-Key | N48: =VLOOKUP($H48,$A$73:$G$101,2,FALSE) -> 1 | O48: =VLOOKUP($H48,$A$73:$G$101,3, FALSE) -> 0.5 | P48: =VLOOKUP($H48,$A$73:$G$101,4,FALSE) -> 0.4 | Q48: =VLOOKUP($H48,$A$73:$G$101,5,TRUE) -> 0 | R48: mm | S48: =IF(AND($R48<>"",N48<>""),N48*VLOOKUP($R48,$A$67:$B$69,2),"") -> 0.03937007874 | T48: =IF(AND($R48<>"",O48<>""),O48*VLOOKUP($R48,$A$67:$B$69,2),"") -> 0.01968503937 | U48: =IF(AND($R48<>"",P48<>""),P48*VLOOKUP($R48,$A$67:$B$69,2),"") -> 0.0157480315 | V48: =IF(AND($R48<>"",Q48<>""),Q48*VLOOKUP($R48,$A$67:$B$69,2),"") -> 0 | W48: =IF(R48<>"",IF(R48=$A$69,$A$68,$A$69),"") -> inch
A49: +12v Supply | B49: Panasonic | C49: ERJ-2RKF3483X | D49: =1+LEN(F49)-LEN(SUBSTITUTE(F49,",","")) -> 1 | E49: =IF(F49<>"",LEFT(F49,1),"Z") -> R | F49: R215 | G49: 348K, 0.1W, 1% | H49: 0402 | J49: 0.01364 | K49: 250 | L49: =D49*J49 -> 0.01364 | M49: Digi-Key | N49: =VLOOKUP($H49,$A$73:$G$101,2,FALSE) -> 1 | O49: =VLOOKUP($H49,$A$73:$G$101,3, FALSE) -> 0.5 | P49: =VLOOKUP($H49,$A$73:$G$101,4,FALSE) -> 0.4 | Q49: =VLOOKUP($H49,$A$73:$G$101,5,TRUE) -> 0 | R49: mm | S49: =IF(AND($R49<>"",N49<>""),N49*VLOOKUP($R49,$A$67:$B$69,2),"") -> 0.03937007874 | T49: =IF(AND($R49<>"",O49<>""),O49*VLOOKUP($R49,$A$67:$B$69,2),"") -> 0.01968503937 | U49: =IF(AND($R49<>"",P49<>""),P49*VLOOKUP($R49,$A$67:$B$69,2),"") -> 0.0157480315 | V49: =IF(AND($R49<>"",Q49<>""),Q49*VLOOKUP($R49,$A$67:$B$69,2),"") -> 0 | W49: =IF(R49<>"",IF(R49=$A$69,$A$68,$A$69),"") -> inch
A50: +12v Supply | B50: Panasonic | C50: ERJ-2RKF7322X | D50: =1+LEN(F50)-LEN(SUBSTITUTE(F50,",","")) -> 1 | E50: =IF(F50<>"",LEFT(F50,1),"Z") -> R | F50: R216 | G50: 73.2K, 0.1W, 1% | H50: 0402 | J50: 0.01364 | K50: 250 | L50: =D50*J50 -> 0.01364 | M50: Digi-Key | N50: =VLOOKUP($H50,$A$73:$G$101,2,FALSE) -> 1 | O50: =VLOOKUP($H50,$A$73:$G$101,3, FALSE) -> 0.5 | P50: =VLOOKUP($H50,$A$73:$G$101,4,FALSE) -> 0.4 | Q50: =VLOOKUP($H50,$A$73:$G$101,5,TRUE) -> 0 | R50: mm | S50: =IF(AND($R50<>"",N50<>""),N50*VLOOKUP($R50,$A$67:$B$69,2),"") -> 0.03937007874 | T50: =IF(AND($R50<>"",O50<>""),O50*VLOOKUP($R50,$A$67:$B$69,2),"") -> 0.01968503937 | U50: =IF(AND($R50<>"",P50<>""),P50*VLOOKUP($R50,$A$67:$B$69,2),"") -> 0.0157480315 | V50: =IF(AND($R50<>"",Q50<>""),Q50*VLOOKUP($R50,$A$67:$B$69,2),"") -> 0 | W50: =IF(R50<>"",IF(R50=$A$69,$A$68,$A$69),"") -> inch
A51: +12v Supply | B51: Panasonic | C51: ERJ-2RKF3832X | D51: =1+LEN(F51)-LEN(SUBSTITUTE(F51,",","")) -> 1 | E51: =IF(F51<>"",LEFT(F51,1),"Z") -> R | F51: R217 | G51: 38.3K, 0.1W, 1% | H51: 0402 | J51: 0.01364 | K51: 250 | L51: =D51*J51 -> 0.01364 | M51: Digi-Key | N51: =VLOOKUP($H51,$A$73:$G$101,2,FALSE) -> 1 | O51: =VLOOKUP($H51,$A$73:$G$101,3, FALSE) -> 0.5 | P51: =VLOOKUP($H51,$A$73:$G$101,4,FALSE) -> 0.4 | Q51: =VLOOKUP($H51,$A$73:$G$101,5,TRUE) -> 0 | R51: mm | S51: =IF(AND($R51<>"",N51<>""),N51*VLOOKUP($R51,$A$67:$B$69,2),"") -> 0.03937007874 | T51: =IF(AND($R51<>"",O51<>""),O51*VLOOKUP($R51,$A$67:$B$69,2),"") -> 0.01968503937 | U51: =IF(AND($R51<>"",P51<>""),P51*VLOOKUP($R51,$A$67:$B$69,2),"") -> 0.0157480315 | V51: =IF(AND($R51<>"",Q51<>""),Q51*VLOOKUP($R51,$A$67:$B$69,2),"") -> 0 | W51: =IF(R51<>"",IF(R51=$A$69,$A$68,$A$69),"") -> inch
A52: Motor | B52: Panasonic | C52: ERJ-2RKF7502X | D52: =1+LEN(F52)-LEN(SUBSTITUTE(F52,",","")) -> 1 | E52: =IF(F52<>"",LEFT(F52,1),"Z") -> R | F52: R301 | G52: 75K, 0.1W, 1% | H52: 0402 | I52: -55, +125 | J52: 0.01364 | K52: 250 | L52: =D52*J52 -> 0.01364 | M52: Digi-Key | N52: =VLOOKUP($H52,$A$73:$G$101,2,FALSE) -> 1 | O52: =VLOOKUP($H52,$A$73:$G$101,3, FALSE) -> 0.5 | P52: =VLOOKUP($H52,$A$73:$G$101,4,FALSE) -> 0.4 | Q52: =VLOOKUP($H52,$A$73:$G$101,5,TRUE) -> 0 | R52: mm | S52: =IF(AND($R52<>"",N52<>""),N52*VLOOKUP($R52,$A$67:$B$69,2),"") -> 0.03937007874 | T52: =IF(AND($R52<>"",O52<>""),O52*VLOOKUP($R52,$A$67:$B$69,2),"") -> 0.01968503937 | U52: =IF(AND($R52<>"",P52<>""),P52*VLOOKUP($R52,$A$67:$B$69,2),"") -> 0.0157480315 | V52: =IF(AND($R52<>"",Q52<>""),Q52*VLOOKUP($R52,$A$67:$B$69,2),"") -> 0 | W52: =IF(R52<>"",IF(R52=$A$69,$A$68,$A$69),"") -> inch
A53: LIN | B53: Panasonic | C53: ERJ-2RKF1003X | D53: =1+LEN(F53)-LEN(SUBSTITUTE(F53,",","")) -> 1 | E53: =IF(F53<>"",LEFT(F53,1),"Z") -> R | F53: R303 | G53: 100K, 0.1W, 1% | H53: 0402 | I53: -55, +125 | J53: 0.01364 | K53: 250 | L53: =D53*J53 -> 0.01364 | M53: Digi-Key | N53: =VLOOKUP($H53,$A$73:$G$101,2,FALSE) -> 1 | O53: =VLOOKUP($H53,$A$73:$G$101,3, FALSE) -> 0.5 | P53: =VLOOKUP($H53,$A$73:$G$101,4,FALSE) -> 0.4 | Q53: =VLOOKUP($H53,$A$73:$G$101,5,TRUE) -> 0 | R53: mm | S53: =IF(AND($R53<>"",N53<>""),N53*VLOOKUP($R53,$A$67:$B$69,2),"") -> 0.03937007874 | T53: =IF(AND($R53<>"",O53<>""),O53*VLOOKUP($R53,$A$67:$B$69,2),"") -> 0.01968503937 | U53: =IF(AND($R53<>"",P53<>""),P53*VLOOKUP($R53,$A$67:$B$69,2),"") -> 0.0157480315 | V53: =IF(AND($R53<>"",Q53<>""),Q53*VLOOKUP($R53,$A$67:$B$69,2),"") -> 0 | W53: =IF(R53<>"",IF(R53=$A$69,$A$68,$A$69),"") -> inch
A54: Motor | B54: Panasonic | C54: ERJ-2RKF1582X | D54: =1+LEN(F54)-LEN(SUBSTITUTE(F54,",","")) -> 2 | E54: =IF(F54<>"",LEFT(F54,1),"Z") -> R | F54: R305,R306 | G54: 15.8K, 0.1W, 1% | H54: 0402 | J54: 0.01364 | K54: 250 | L54: =D54*J54 -> 0.02728 | M54: Digi-Key | N54: =VLOOKUP($H54,$A$73:$G$101,2,FALSE) -> 1 | O54: =VLOOKUP($H54,$A$73:$G$101,3, FALSE) -> 0.5 | P54: =VLOOKUP($H54,$A$73:$G$101,4,FALSE) -> 0.4 | Q54: =VLOOKUP($H54,$A$73:$G$101,5,TRUE) -> 0 | R54: mm | S54: =IF(AND($R54<>"",N54<>""),N54*VLOOKUP($R54,$A$67:$B$69,2),"") -> 0.03937007874 | T54: =IF(AND($R54<>"",O54<>""),O54*VLOOKUP($R54,$A$67:$B$69,2),"") -> 0.01968503937 | U54: =IF(AND($R54<>"",P54<>""),P54*VLOOKUP($R54,$A$67:$B$69,2),"") -> 0.0157480315 | V54: =IF(AND($R54<>"",Q54<>""),Q54*VLOOKUP($R54,$A$67:$B$69,2),"") -> 0 | W54: =IF(R54<>"",IF(R54=$A$69,$A$68,$A$69),"") -> inch
A55: +12v Supply | B55: Taiyo Yuden | C55: NS12575T220MN | D55: =1+LEN(F55)-LEN(SUBSTITUTE(F55,",","")) -> 1 | E55: =IF(F55<>"",LEFT(F55,1),"Z") -> T | F55: T201 | G55: 22uH, 31mOhm, 4.05A (5.56A Sat) | H55: NS12575 | I55: -40, +125 | J55: 1.47 | K55: 100 | L55: =D55*J55 -> 1.47 | M55: Digi-Key | N55: =VLOOKUP($H55,$A$73:$G$101,2,FALSE) -> 12.5 | O55: =VLOOKUP($H55,$A$73:$G$101,3, FALSE) -> 12.5 | P55: =VLOOKUP($H55,$A$73:$G$101,4,FALSE) -> 7.5 | Q55: =VLOOKUP($H55,$A$73:$G$101,5,TRUE) -> 0 | R55: mm | S55: =IF(AND($R55<>"",N55<>""),N55*VLOOKUP($R55,$A$67:$B$69,2),"") -> 0.4921259843 | T55: =IF(AND($R55<>"",O55<>""),O55*VLOOKUP($R55,$A$67:$B$69,2),"") -> 0.4921259843 | U55: =IF(AND($R55<>"",P55<>""),P55*VLOOKUP($R55,$A$67:$B$69,2),"") -> 0.2952755906 | V55: =IF(AND($R55<>"",Q55<>""),Q55*VLOOKUP($R55,$A$67:$B$69,2),"") -> 0 | W55: =IF(R55<>"",IF(R55=$A$69,$A$68,$A$69),"") -> inch
E56: =IF(F56<>"",LEFT(F56,1),"Z") -> Z | L56: =D56*J56 -> 0 | S56: =IF(AND($R56<>"",N56<>""),N56*VLOOKUP($R56,$A$67:$B$69,2),"") ->  | T56: =IF(AND($R56<>"",O56<>""),O56*VLOOKUP($R56,$A$67:$B$69,2),"") ->  | U56: =IF(AND($R56<>"",P56<>""),P56*VLOOKUP($R56,$A$67:$B$69,2),"") ->  | V56: =IF(AND($R56<>"",Q56<>""),Q56*VLOOKUP($R56,$A$67:$B$69,2),"") ->  | W56: =IF(R56<>"",IF(R56=$A$69,$A$68,$A$69),"") -> 
E57: =IF(F57<>"",LEFT(F57,1),"Z") -> Z | L57: =D57*J57 -> 0 | S57: =IF(AND($R57<>"",N57<>""),N57*VLOOKUP($R57,$A$67:$B$69,2),"") ->  | T57: =IF(AND($R57<>"",O57<>""),O57*VLOOKUP($R57,$A$67:$B$69,2),"") ->  | U57: =IF(AND($R57<>"",P57<>""),P57*VLOOKUP($R57,$A$67:$B$69,2),"") ->  | V57: =IF(AND($R57<>"",Q57<>""),Q57*VLOOKUP($R57,$A$67:$B$69,2),"") ->  | W57: =IF(R57<>"",IF(R57=$A$69,$A$68,$A$69),"") -> 
E58: =IF(F58<>"",LEFT(F58,1),"Z") -> Z | L58: =D58*J58 -> 0 | S58: =IF(AND($R58<>"",N58<>""),N58*VLOOKUP($R58,$A$67:$B$69,2),"") ->  | T58: =IF(AND($R58<>"",O58<>""),O58*VLOOKUP($R58,$A$67:$B$69,2),"") ->  | U58: =IF(AND($R58<>"",P58<>""),P58*VLOOKUP($R58,$A$67:$B$69,2),"") ->  | V58: =IF(AND($R58<>"",Q58<>""),Q58*VLOOKUP($R58,$A$67:$B$69,2),"") ->  | W58: =IF(R58<>"",IF(R58=$A$69,$A$68,$A$69),"") -> 
E59: =IF(F59<>"",LEFT(F59,1),"Z") -> Z | L59: =D59*J59 -> 0 | S59: =IF(AND($R59<>"",N59<>""),N59*VLOOKUP($R59,$A$67:$B$69,2),"") ->  | T59: =IF(AND($R59<>"",O59<>""),O59*VLOOKUP($R59,$A$67:$B$69,2),"") ->  | U59: =IF(AND($R59<>"",P59<>""),P59*VLOOKUP($R59,$A$67:$B$69,2),"") ->  | V59: =IF(AND($R59<>"",Q59<>""),Q59*VLOOKUP($R59,$A$67:$B$69,2),"") ->  | W59: =IF(R59<>"",IF(R59=$A$69,$A$68,$A$69),"") -> 
E60: =IF(F60<>"",LEFT(F60,1),"Z") -> Z | L60: =D60*J60 -> 0 | S60: =IF(AND($R60<>"",N60<>""),N60*VLOOKUP($R60,$A$67:$B$69,2),"") ->  | T60: =IF(AND($R60<>"",O60<>""),O60*VLOOKUP($R60,$A$67:$B$69,2),"") ->  | U60: =IF(AND($R60<>"",P60<>""),P60*VLOOKUP($R60,$A$67:$B$69,2),"") ->  | V60: =IF(AND($R60<>"",Q60<>""),Q60*VLOOKUP($R60,$A$67:$B$69,2),"") ->  | W60: =IF(R60<>"",IF(R60=$A$69,$A$68,$A$69),"") -> 
E61: =IF(F61<>"",LEFT(F61,1),"Z") -> Z | L61: =D61*J61 -> 0 | S61: =IF(AND($R61<>"",N61<>""),N61*VLOOKUP($R61,$A$67:$B$69,2),"") ->  | T61: =IF(AND($R61<>"",O61<>""),O61*VLOOKUP($R61,$A$67:$B$69,2),"") ->  | U61: =IF(AND($R61<>"",P61<>""),P61*VLOOKUP($R61,$A$67:$B$69,2),"") ->  | V61: =IF(AND($R61<>"",Q61<>""),Q61*VLOOKUP($R61,$A$67:$B$69,2),"") ->  | W61: =IF(R61<>"",IF(R61=$A$69,$A$68,$A$69),"") -> 
E62: =IF(F62<>"",LEFT(F62,1),"Z") -> Z | L62: =D62*J62 -> 0 | S62: =IF(AND($R62<>"",N62<>""),N62*VLOOKUP($R62,$A$67:$B$69,2),"") ->  | T62: =IF(AND($R62<>"",O62<>""),O62*VLOOKUP($R62,$A$67:$B$69,2),"") ->  | U62: =IF(AND($R62<>"",P62<>""),P62*VLOOKUP($R62,$A$67:$B$69,2),"") ->  | V62: =IF(AND($R62<>"",Q62<>""),Q62*VLOOKUP($R62,$A$67:$B$69,2),"") ->  | W62: =IF(R62<>"",IF(R62=$A$69,$A$68,$A$69),"") -> 
E63: =IF(F63<>"",LEFT(F63,1),"Z") -> Z
K64: Total | L64: =SUM(L2:L63) -> 26.4574
N66: Max Height | P66: 9.652 | R66: mm
A67: Unit Lookup | B67: To alternate | N67: Max Depth | P67: 1.5 | Q67: 1.5 | R67: mm
A68: inch | B68: =1/B69 -> 25.4
A69: mm | B69: =1/25.4 -> 0.03937007874
A72: Package | B72: Length | C72: Width | D72: Height | F72: Depth | G72: Units
A73: 0402 | B73: 1 | C73: 0.5 | D73: 0.4 | G73: mm
A74: 0402T | B74: 1 | C74: 0.5 | D74: 0.55 | G74: mm
A75: 0603 | B75: 1.6 | C75: 0.8 | D75: 0.8 | G75: mm
A76: 0805 | B76: 2 | C76: 1.25 | D76: 1.45 | G76: mm
A77: 1206 | B77: 3.2 | C77: 1.6 | D77: 0.7 | G77: mm
A78: 1210 | B78: 3.2 | C78: 2.44 | D78: 2.8 | G78: mm
A79: 2220 | B79: 5.7 | C79: 5 | D79: 2.5 | G79: mm
A80: 26-WFQFN | B80: 6 | C80: 4 | D80: 0.74 | G80: mm
A81: 8-SOIC | B81: 5 | C81: 6 | D81: 1.75 | G81: mm
A82: CAN SMD-4 | B82: 4 | C82: 4 | D82: 5.4 | G82: mm
A83: CAN SMD-6 | B83: 6.3 | C83: 6.3 | D83: 5.8 | G83: mm
A84: CAN SMD-8 | B84: 8 | C84: 8 | D84: 6.2 | G84: mm
A85: CAN SMD-8T | B85: 8 | C85: 8 | D85: 10.2 | G85: mm
A86: MabuchiMotor | B86: 45 | C86: 24.2 | D86: 18.3 | G86: mm
A87: Mallory | B87: 14 | C87: 14 | D87: 7.7 | F87: 6.7 | G87: mm
A88: MSOP-8 | B88: 5 | C88: 3 | D88: 1.1 | G88: mm
A89: NS12575 | B89: 12.5 | C89: 12.5 | D89: 7.5 | G89: mm
A90: SC88A | B90: 5 | C90: 6 | D90: 1.75 | G90: mm
A91: SFW8S | B91: 14.4 | C91: 3.6 | D91: 5.3 | G91: mm
A92: SMB | B92: 7.1 | C92: 6.1 | D92: 2.41 | G92: mm
A93: SMC | B93: 2.1 | C93: 2 | D93: 5.3 | G93: mm
A94: SMD | B94: 2.1 | C94: 2 | D94: 5.3 | G94: mm
A95: SOIC-28 | B95: 17.9 | C95: 10.3 | D95: 2.65 | G95: mm
A96: SOT-223 | B96: 6.5 | C96: 7 | D96: 1.7 | G96: mm
A97: SOT-23 | B97: 3.04 | C97: 2.64 | D97: 1.22 | G97: mm
A98: SOT-23-5 | B98: 3.04 | C98: 3 | D98: 1.3 | G98: mm
A99: Sullins-6PS | B99: 4.21 | C99: 3.1 | D99: 4.5 | G99: mm
A100: TO-263 | B100: 15 | C100: 10 | D100: 4.4 | G100: mm
A101: Z - Last Row | B101: 0 | C101: 0 | D101: 0 | G101: mm
A105: Row Labels | B105: Sum of Est. Cost
A106: +12v Supply | B106: 8.54204
A107: +3.3v Supply | B107: 0.71036
A108: Keypad | B108: 0.6586
A109: LIN | B109: 1.39694
A110: Micro | B110: 2.75128
A111: Motor | B111: 7.44934
A112: Sense | B112: 0.07016
A113: Wake Out | B113: 1.5031
A114: (blank)
A115: +12v Shutdown | B115: 0.04092
A116: +12v Clean Supply | B116: 3.10304
A117: Development | B117: 0.15264
A118: Acoustic | B118: 2.27676
A119: LIN Master | B119: 0.06312
A120: Grand Total | B120: 28.7183

Sheet LT3690 PS
A1: Signal | B1: Value | C1: Units | D1: Notes | F1: Based on LT3690
A2: V-IN | B2: 28 | C2: v | D2: Typical V-in
A3: V-IN Max | B3: 36 | C3: v | D3: Overload shutdown
A5: V-OUT Target | B5: 8 | C5: v
A6: Vin Low | B6: 9 | C6: v
A7: RT [R21] | B7: 72900 | C7: ohms
A8: R4 (FB to Gnd - R22) | B8: 38300 | C8: ohms | D8: R4 is data sheet reference
A9: R3 (Out to FB - R23) | B9: =B8*(V_OUT/V_FB-1) -> 344700 | C9: ohms | D9: R3 is data sheet reference
A10: =A8 & " => 1%" -> R4 (FB to Gnd - R22) => 1% | B10: =Resistor((B8)) -> 38300 | C10: ohms | D10: Selected Resistor Value
A11: =A9 & " => 1%" -> R3 (Out to FB - R23) => 1% | B11: =Resistor((B9)) -> 348000 | C11: ohms | D11: Selected Resistor Value
A12: =A7 & " => 1%" -> RT [R21] => 1% | B12: =Resistor((RT)) -> 73200 | C12: ohms | D12: Selected Resistor Value
A13: V-FB | B13: 0.8 | C13: v
A14: V-SW | B14: 0.37 | C14: v
A15: V-LS | B15: 0.12 | C15: v
A16: T-ON(min) | B16: 0.25 | C16: usec
A17: T-OFF(min) | B17: 0.21 | C17: usec
A18: Fsw(max) | B18: =(V_OUT+V_LS)/(0.000001*T_ON*(V_IN-V_SW+V_LS))/1000000 -> 1.17045045 | C18: MHz | D18: Highest acceptible frequency
A19: Freq (Select) | B19: =VLOOKUP(RT,A33:B47,2) -> 0.3 | C19: MHz | D19: Chosen frequency
A20: DC-min | B20: =F_Select*0.000001*T_ON*1000000 -> 0.075 | C20: % duty cycle
A21: DC-max | B21: =1-1000000*F_Select*0.000001*T_OFF -> 0.937 | C21: % duty cycle
A22: V-IN(min) | B22: =(V_OUT+V_LS)/(1-1000000*F_Select*0.000001*T_OFF)-V_LS+V_SW -> 8.915955176 | C22: v by duty cycle
A23: V-IN(max) | B23: =(V_OUT+V_LS)/(1000000*F_Select*0.000001*T_ON)-V_LS+V_SW -> 108.5166667 | C23: v by duty cycle
A24: I-L(peak) | B24: =8+(V_IN_OVERLOAD-V_OUT)/(0.000001*Inductance)*0.000001*T_ON -> 8.386001029 | C24: A
A25: L - Inductor | B25: =(V_OUT+V_LS)*0.67/F_Select -> 18.13466667 | C25: uHenry | D25: Target Value
A26: Lmin - Inductor (min) | B26: =(V_OUT +V_LS)*0.42/F_Select -> 11.368 | C26: uHenry | D26: Minimum value
A27: I-L(Peak to peak ripple) | B27: =(1-10%)*(V_OUT+V_LS)/(B25*F_SW) -> 0.3442991324 | C27: A
A28: C-OUT (output cap) | B28: =150/(V_OUT*F_SW) -> 16.01947352 | C28: uF | D28: (X5R or X7R ceramic best) or Electrolytic with ESR <= 0.03ohm
A29: C-Soft Start | B29: =B28/10000 -> 0.001601947352 | C29: uF
A30: T-Ramp | B30: =B29*0.8/0.000002 -> 640.7789409 | C30: usec
A32: Rt | B32: MHz
A33: 9590 | B33: 1.5
A34: 10600 | B34: 1.4
A35: 11800 | B35: 1.3
A36: 13300 | B36: 1.2
A37: 15000 | B37: 1.1
A38: 17000 | B38: 1
A39: 19600 | B39: 0.9
A40: 22700 | B40: 0.8
A41: 26800 | B41: 0.7
A42: 32400 | B42: 0.6
A43: 40200 | B43: 0.5
A44: 52200 | B44: 0.4
A45: 72900 | B45: 0.3
A46: 117000 | B46: 0.2
A47: 164000 | B47: 0.15
A53: SS | B53: Cout | C53: L
A54: .001uF | B54: 10 uF | C54: 18 uH
A80: .001uF | B80: 10 uF | C80: 12 uH
A106: .0001 uF | B106: 10 uF | C106: 12uH
A132: .001uF | B132: 10 uF | C132: 27 uH

Sheet PCB Mech
A1: Origin for PCB | B1: Lower left corner | D1: from 5 Jan 2012 email | K1: Values | L1: mm | M1: Value | N1: in
A2: PCB width | B2: 1.179 | C2: in | K2: 25.4 | L2: mm | M2: =K2/25.4 -> 1 | N2: in | O2: test
A3: PCB height | B3: 3.25 | C3: in | K3: 4.034 | L3: mm | M3: =K3/25.4 -> 0.1588188976 | N3: in | O3: Ledge Diameter
A4: Hole 1 x (bottom left) | B4: =B2/2-0.315 -> 0.2745 | K4: 2.733 | L4: mm | M4: 0.1075984252 | N4: in | O4: Post Diameter
A5: Hole 1 y | B5: =(B3-2.972)/2 -> 0.139 | K5: 5 | L5: mm | M5: 0.1968503937 | N5: in | O5: Ramp width
A6: Hole 2 x (top-left) | B6: =B4 -> 0.2745 | K6: 25.637 | L6: mm | M6: 1.009330709 | N6: in | O6: lower post to lower diag rib
A7: Hole 2 y | B7: =B5+2.972 -> 3.111 | K7: 3.262 | L7: mm | M7: 0.1284251969 | N7: in | O7: =1.139+0.128 -> 1.267
A8: Hole 3 x (top-right) | B8: =B4+0.6299 -> 0.9044 | K8: 23.95 | L8: mm | M8: 0.9429133858 | N8: in | O8: =3.111-M8 -> 2.168086614
A9: Hole 3 y | B9: =B7 -> 3.111 | K9: 12.9 | L9: mm | M9: 0.5078740157 | N9: in
A10: Hole 4 x (bottom-right) | B10: =B8 -> 0.9044
A11: Hole 4 y | B11: =B5 -> 0.139
A12: notch 1 x (center) | B12: =B2/2-0.646 -> -0.0565
A13: notch 1 y | B13: 2.325
A14: notch 2 x | B14: =B2/2+0.648 -> 1.2375
A15: notch 2 y | B15: =B13 -> 2.325
E28: image is not quite symmetrical

Sheet PIC Load Dump
A1: Signal | B1: Value | C1: Units | D1: Notes | F1: VDD | G1: DAC Count | H1: DAC V | I1: Equiv Bat
A2: Battery | B2: 32 | C2: v | F2: 3.3 | G2: 0 | H2: =($F$2*G2/2^5) -> 0 | I2: =H2*($B$3+$B$4)/$B$4 -> 0 | K2: Signal | L2: Value | M2: Units | N2: Notes
A3: R16 | B3: 100000 | C3: ohm | G3: 1 | H3: 0.103125 | I3: =H3*($B$3+$B$4)/$B$4 -> 1.265751832 | K3: R5 | L3: 100000 | M3: Ohms
A4: R20 | B4: 8870 | C4: ohm | G4: 2 | H4: 0.20625 | I4: =H4*($B$3+$B$4)/$B$4 -> 2.531503664 | K4: R6 | L4: 100000 | M4: Ohms
A5: V analog in | B5: =B2*B4/(B3+B4) -> 2.607146138 | C5: v | G5: 3 | H5: 0.309375 | I5: 3.797255496 | K5: V-Level | L5: =B6*L4/(L3+L4) -> 1.65 | M5: v
A6: V Ref | B6: 3.3 | C6: v | G6: 4 | H6: 0.4125 | I6: 5.063007328 | K6: I R5-R6 | L6: =1000*B6/(L3+L4) -> 0.0165 | M6: mA
A7: A/D | B7: =B5/B6*2^12 -> 3236.021388 | C7: Counts | G7: 5 | H7: 0.515625 | I7: 6.32875916
G8: 6 | H8: 0.61875 | I8: 7.594510992
A9: R16 Nearest 1% | B9: =Resistor(B3) -> 100000 | C9: ohm | G9: 7 | H9: 0.721875 | I9: 8.860262824
A10: R20 Nearest 1% | B10: =Resistor((B4)) -> 8870 | C10: ohm | G10: 8 | H10: 0.825 | I10: 10.12601466
G11: 9 | H11: 0.928125 | I11: 11.39176649
G12: 10 | H12: 1.03125 | I12: 12.65751832
G13: 11 | H13: 1.134375 | I13: 13.92327015
G14: 12 | H14: 1.2375 | I14: 15.18902198
G15: 13 | H15: 1.340625 | I15: 16.45477382
G16: 14 | H16: 1.44375 | I16: 17.72052565
G17: 15 | H17: 1.546875 | I17: 18.98627748
G18: 16 | H18: 1.65 | I18: 20.25202931
G19: 17 | H19: 1.753125 | I19: 21.51778114
G20: 18 | H20: 1.85625 | I20: 22.78353298
G21: 19 | H21: 1.959375 | I21: 24.04928481
G22: 20 | H22: 2.0625 | I22: 25.31503664
G23: 21 | H23: 2.165625 | I23: 26.58078847
G24: 22 | H24: 2.26875 | I24: 27.8465403
G25: 23 | H25: 2.371875 | I25: 29.11229214
G26: 24 | H26: 2.475 | I26: 30.37804397
G27: 25 | H27: 2.578125 | I27: 31.6437958
G28: 26 | H28: 2.68125 | I28: 32.90954763
G29: 27 | H29: 2.784375 | I29: 34.17529946
G30: 28 | H30: 2.8875 | I30: 35.4410513
G31: 29 | H31: 2.990625 | I31: 36.70680313
G32: 30 | H32: 3.09375 | I32: 37.97255496
G33: 31 | H33: 3.196875 | I33: 39.23830679

Sheet WakeIn
A1: Signal | B1: Value | C1: Units | D1: Notes
A2: Battery | B2: 36 | C2: v
A3: R34 | B3: 9760 | C3: ohm | D3: Parallel resistors to handle the power
A4: R35 | B4: =B3 -> 9760 | C4: ohm
A5: R3 | B5: =B4 -> 9760 | C5: ohm
A6: ="Current " &A3 -> Current R34 | B6: =$B$2/B3 -> 0.00368852459 | C6: A
A7: ="Current " &A4 -> Current R35 | B7: =$B$2/B4 -> 0.00368852459 | C7: A
A8: Current R3 | B8: =$B$2/B5 -> 0.00368852459 | C8: A
A9: ="Power " &A3 -> Power R34 | B9: =$B$2*B6 -> 0.1327868852 | C9: W | D9: 0.25W components
A10: ="Power " &A4 -> Power R35 | B10: =$B$2*B7 -> 0.1327868852 | C10: W
A11: Power R3 | B11: =$B$2*B8 -> 0.1327868852 | C11: W
A13: Battery (low) | B13: 12 | C13: v
A14: Load | B14: =1/(1/B3+1/B4+1/B5) -> 3253.333333 | C14: ohm
A15: WakeIn current | B15: =B13/B14 -> 0.00368852459 | C15: a
A17: Battery (low) | B17: 28 | C17: v
A18: Load | B18: =1/(1/B3+1/B4+1/B5) -> 3253.333333 | C18: ohm
A19: WakeIn current | B19: =B17/B18 -> 0.008606557377 | C19: a
A20: Power | B20: =B17^2/B3 -> 0.08032786885
A23: R16 Nearest 1% | B23: =Resistor(B3) -> 9760 | C23: ohm
A24: R20 Nearest 1% | B24: =Resistor(B4) -> 9760 | C24: ohm
D34: JD Requirement - 4 mA @ 12v for contact cleaning

Sheet WakeOut
A1: Subsystem | B1: Manufacturer | C1: Part Number | D1: Qty | E1: Designator | F1: Description | G1: Package | H1: T-storage | I1: Est. Cost | J1: Qty | K1: $ Ext. | L1: Source | M1: Length | N1: Width | O1: Height | P1: Depth | Q1: Units | R1: Length | S1: Width | T1: Height | U1: Depth | V1: Units
A3: Wake Out | B3: Infineon | C3: BSP452 | D3: =1+LEN(E3)-LEN(SUBSTITUTE(E3,",","")) -> 1 | E3: IC6 | F3: High side switch | G3: SOT-223 | I3: 1.4281 | J3: 100 | K3: =D3*I3 -> 1.4281 | L3: Digi-Key | M3: 6.5 | N3: 7 | O3: 1.7 | Q3: mm | R3: =IF(AND($Q3<>"",M3<>""),M3*VLOOKUP($Q3,$A$67:$B$69,2),"") ->  | S3: =IF(AND($Q3<>"",N3<>""),N3*VLOOKUP($Q3,$A$67:$B$69,2),"") ->  | T3: =IF(AND($Q3<>"",O3<>""),O3*VLOOKUP($Q3,$A$67:$B$69,2),"") ->  | U3: =IF(AND($Q3<>"",P3<>""),P3*VLOOKUP($Q3,$A$67:$B$69,2),"") ->  | V3: =IF(Q3<>"",IF(Q3=$A$69,$A$68,$A$69),"") -> 0
A5: Wake Out | B5: Infineon | C5: BTS4140N | D5: =1+LEN(E5)-LEN(SUBSTITUTE(E5,",","")) -> 1 | E5: IC6 | F5: high side driver | G5: SOT-223 | I5: 0.9344 | J5: 100 | K5: =D5*I5 -> 0.9344 | L5: Digi-Key
A6: Wake Out | B6: Infineon | C6: BSS123 L6327 | D6: =1+LEN(E6)-LEN(SUBSTITUTE(E6,",","")) -> 1 | F6: N-channel mosfet | G6: SOT-23 | I6: 0.1512 | J6: 100 | K6: =D6*I6 -> 0.1512 | L6: Digi-Key
A22: Vout | B22: =1.242*(B24/B23+1) -> 11.85402532
A23: R1 | B23: =Resistor(15800) -> 15800
A24: R2 | B24: 135000

Sheet LED Backlight
A1: LED Load Description | B1: Value | C1: Units | E1: Notes
A2: LED Voltage Drop max | B2: 3.1 | C2: v
A3: LED Voltage Drop min | B3: 2.7 | C3: v
A4: LED Max Current (at 3.1v) | B4: 0.005 | C4: A
A5: # LEDs in Series | B5: 2 | C5: pc
A6: # Parallel strings | B6: 2 | C6: count
A7: Voltage - Minimum | B7: 12 | C7: v
A9: Resistance - Series | B9: =Resistor((B7-B5*B2)/B4) -> 1150 | C9: ohm
A10: LED Max Current (at 2.7v) | B10: =(B7-B5*B3)/B9 -> 0.005739130435 | C10: A
A11: Keypad Current at Vmin | B11: =B$6*(B7-B$5*B$2)/B$9 -> 0.01008695652 | C11: A
A12: Keypad Current at LED min V | B12: =B6*B10 -> 0.01147826087 | C12: A
A13: Current Limit Power Diss | B13: =(B7-B3)*B10 -> 0.05337391304 | C13: W
A15: LED Driver | B15: Value | C15: Units
A16: Q2 collector current | B16: =B12 -> 0.01147826087 | C16: A
A17: Q2 DC current gain | B17: 72 | C17: hFE
A18: Q2 Base Drive | B18: =B16/B17 -> 0.0001594202899 | C18: A
A19: Q2 Vbe | B19: 0.6 | C19: v
A20: Port Pin Vout High | B20: 3.1 | C20: v
A21: R Base Drive resistor | B21: =(B20-B19)/B18 -> 15681.81818 | C21: ohm
A22: Nearest 1% value | B22: =Resistor((B21)) -> 15800 | C22: ohm
A23: R Power dissipation | B23: =(B20-B19)*B18 -> 0.0003985507246 | C23: W
A29: Development LEDs | B29: Value | C29: Units
A30: LED Drive voltage | B30: 3.3 | C30: v
A31: LED voltage drop max | B31: 2.4 | C31: v
A32: LED drive current | B32: 0.005 | C32: A
A33: Series Resistor | B33: =(B30-B31)/B32 -> 180 | C33: ohm
A34: Nearest 1% value | B34: =Resistor(B33) -> 178 | C34: ohm
A35: Resistor Power dissipation | B35: =(B30-B31)*B32 -> 0.0045 | C35: W

Sheet Prog
A1: Reset protection | B1: Value | C1: Units
A2: Series Resistor | B2: 100 | C2: ohm
A3: Max voltage diff | B3: 5 | C3: v
A4: Resistor Power Diss | B4: =B3^2/B2 -> 0.25 | C4: W

Sheet 12v Power
A1: Signal | B1: Value | C1: Units | D1: Notes | F1: Value | G1: Units | H1: Notes
A2: V-IN | B2: 28 | C2: v | F2: 34 | G2: v | H2: Controlled shutdown
A3: V-OUT | B3: 12 | C3: v | F3: 12 | G3: v
A4: R1 | B4: =Resistor(B5*(B3/1.193-1)) -> 143000 | C4: ohm
A5: R2 | B5: =Resistor(15800) -> 15800 | C5: ohm
A6: Current - R1,R2 | B6: =B3/(B4+B5) *1000 -> 0.07556675063 | C6: mA
A8: 12v Loads | B8: Value | C8: Units | D8: Notes | F8: Value | G8: Units | H8: Notes
A9: Quiescient Current | B9: 0.025 | C9: mA | F9: 0.025 | G9: mA
A10: LIN | B10: =1000*'LIN Xcvr'!B12 -> 17 | C10: mA | D10: 27 mA as master | F10: 0.03 | G10: mA | H10: No transmit
A11: Acoustic Signal | B11: 5 | C11: mA | F11: 0 | G11: mA | H11: Signal Off
A12: Backlight LEDs | B12: =1000*'LED Backlight'!B16 -> 11.47826087 | C12: mA | D12: from LED Sheet | F12: =0.5*B12 -> 5.739130435 | G12: mA
A13: 3.3v Supply | B13: ='3.3v Power'!B38 -> 21.51489135 | C13: mA | D13: from 3.3v Power sheet | F13: ='3.3v Power'!E38 -> 5.189889135 | G13: mA | H13: Includes all loads
A14: Total | B14: =SUM(B9:B13) -> 55.01815222 | C14: mA | F14: =SUM(F9:F13) -> 10.98401957 | G14: mA
A16: Operating Junction Limit | B16: 125 | C16: °C | D16: Component Limit
A17: Power Dissipation | B17: =(B2-B3)*B14/1000 -> 0.8802904356 | C17: W | F17: =(F2-F3)*F14/1000 -> 0.2416484305 | G17: W
A19: Temp Junct to Board | B19: 34 | C19: °C / W | F19: 34 | G19: °C / W
A21: Temp Rise | B21: =B17*B19 -> 29.92987481 | C21: °C | F21: =F17*F19 -> 8.216046638 | G21: °C
A22: Ambient | B22: 85 | C22: °C | F22: 85 | G22: °C
A23: Junction Temp | B23: =SUM(B21:B22) -> 114.9298748 | C23: °C | F23: =SUM(F21:F22) -> 93.21604664 | G23: °C

Sheet 3.3v Power
A1: Description | B1: Value | C1: Units | D1: Notes
A2: LM2936DT-3.3 | B2: 3.3 | C2: v | D2: regulated output voltage, 50 mA max. -50, +60
A4: V Battery min | B4: 9 | C4: v
A5: V Battery max operating | B5: 32 | C5: v | D5: max operating (does not subtract reverse diode
A6: V Battery max | B6: 36 | C6: v | D6: auto-sleep
A8: I Load min | B8: 0.5 | C8: mA
A9: I Load max operating | B9: =B31 -> 10 | C9: mA | D9: Average current
A10: I Load max | B10: 2 | C10: mA
A12: Power dissipation min | B12: =(B4-$B$2)*B8 -> 2.85 | C12: mW
A13: Power dissipation max oper. | B13: =(B5-$B$2)*B9 -> 287 | C13: mW | D13: max operating
A14: Power dissipation max | B14: =(B6-$B$2)*B10 -> 65.4 | C14: mW | D14: Linear regulator dissipation
A16: Ambient temp nominal | B16: 25 | C16: °C
A17: Ambient temp max | B17: 85 | C17: °C
A18: Temp Rise J-A | B18: 140 | C18: °C / W | D18: Component spec
A19: Calc. Temp Rise | B19: =B18*B13/1000 -> 40.18 | C19: °C
A20: Calc. Temp max oper | B20: =B17+B19 -> 125.18 | C20: °C | D20: Spec is 150°C, with power diss internally limited
A22: Diode Drop | B22: 1 | C22: v | D22: Reverse Protection
A23: Current | B23: 0.05 | C23: A
A24: Diode Power | B24: =1000*B22*B23 -> 50 | C24: mW
A26: Development LED Voltage | B26: 1.6 | C26: v
A27: Target Current | B27: 5 | C27: mA
A28: Nearest 1% resistor | B28: =Resistor((B2-B26)/(B27/1000)) -> 340 | C28: ohm
A30: Current Requirements | B30: Value | C30: Units | D30: Notes | E30: Value | F30: Units | G30: Notes
A31: PIC | B31: 10 | C31: mA | D31: Cranking hard | E31: 4 | F31: mA | G31: gentle snooze
A32: LED Driver | B32: =1000*(B2-0.6)/2050 -> 1.317073171 | C32: mA | D32: 100% on | E32: =0.1 *1000*(B2-0.6)/2050 -> 0.1317073171 | F32: mA | G32: 10% on
A33: Acoustic Driver | B33: =1000*(B2-0.6)/33000 -> 0.08181818182 | C33: mA | D33: 100% on | E33: =0.1 * 1000*(B2-0.6)/33000 -> 0.008181818182 | F33: mA | G33: 10% on
A34: Test Point LEDs (2) | B34: =2*B27 -> 10 | C34: mA | D34: both on | E34: =0.1 * 2*B27 -> 1 | F34: mA | G34: 10% on
A35: HV Enable | B35: =1000*B2/100000 -> 0.033 | C35: mA | D35: hv on | E35: =1000*E2/100000 -> 0 | F35: mA | G35: hv off
A36: Quiescient Current | B36: 0.05 | C36: mA | D36: regulator internal | E36: 0.05 | F36: mA | G36: regulator internal
A37: LIN RxD | B37: =1000*B2/100000 -> 0.033 | C37: mA | D37: normal | E37: =1000*E2/100000 -> 0 | F37: mA | G37: sleep
A38: Total | B38: =SUM(B31:B37) -> 21.51489135 | C38: mA | E38: =SUM(E31:E37) -> 5.189889135 | F38: mA

Sheet Motor
A1: Description | B1: Value | C1: Units | D1: Notes
A2: Min Voltage | B2: 9 | C2: V | D2: Assumes the motor is rated to operate at this minimum voltage
A3: Motor Current @Min V | B3: 5 | C3: A | D3: And current
A4: Power Min | B4: =B2*B3 -> 45 | C4: W
A6: Voltage 1 | B6: 12 | C6: V
A7: Motor Current @V1 | B7: =B$3 * B6/B$2 -> 6.666666667 | C7: A
A8: Power 1 | B8: =B6*B7 -> 80 | C8: W
A10: Voltage 2 | B10: 24 | C10: V
A11: Motor Current @V2 | B11: =B$3 * B10/B$2 -> 13.33333333 | C11: A
A12: Power 2 | B12: =B10*B11 -> 320 | C12: W
A14: Voltage 2 | B14: 32 | C14: V
A15: Motor Current @V2 | B15: =B$3 * B14/B$2 -> 17.77777778 | C15: A
A16: Power 3 | B16: =B14*B15 -> 568.8888889 | C16: W
A18: Error Flag Behavior | B18: Value | C18: Units | D18: Description
A19: Vcc | B19: 3.3 | C19: v
A20: EF leakage | B20: 10 | C20: uA
A21: Nominal equiv R | B21: =B19/(B20*0.000001) -> 330000 | C21: ohm
A22: Pullup | B22: =Resistor(75000) -> 75000 | C22: ohm
A23: EF V leakage | B23: =B19*B21/(B22+B21) -> 2.688888889 | C23: bill25
A25: PIC Input High (TTL) | B25: 2 | C25: v
A26: PIC Input High (TTL2) | B26: =0.8+0.25*B19 -> 1.625 | C26: v
A27: PIC Input High (Schmitt) | B27: =0.8*B19 -> 2.64 | C27: v
A28: PIC Input High (I2C) | B28: =0.7*B19 -> 2.31 | C28: v
A29: PIC Input High (SMBus) | B29: 2.1 | C29: v

Sheet LIN Xcvr
A1: Vendor | B1: Part # | C1: LIN V
A2: Infineon | B2: TLE7259-2GE | C2: 2
A5: LIN Master | B5: Value | C5: Units
A6: LIN MASTER | B6: 1 | C6: True/False
A7: Vsupply | B7: 12 | C7: v
A8: Resistor | B8: =IF(B6,1000,1000000) -> 1000 | C8: ohm
A9: Current - short crkt | B9: =B7/B8 -> 0.012 | C9: A
A10: Power Dis | B10: =(B7-0.6)*B9 -> 0.1368 | C10: W
A11: Chip Oper Cur | B11: 0.005 | C11: A
A12: Total Current | B12: =B7/B8+B11 -> 0.017 | C12: A
A14: LIN Master | B14: Value | C14: Units
A15: Nuber Resistors | B15: 2 | C15: count
A16: Resistance | B16: =B15*B8 -> 2000 | C16: ohm
A17: Current - short | B17: =B7/B16 -> 0.006 | C17: A
A18: Power | B18: =B7*B17 -> 0.072 | C18: W

Sheet Ribbon Con
A1: Pin | B1: X | C1: Y | D1: Units
A2: 1 | B2: =-2.5-1.25/2 -> -3.125 | C2: 1 | D2: mm
A3: 2 | B3: =(A3-A$2)*1.25+B$2 -> -1.875 | C3: =C2-2 -> -1 | D3: mm
A4: 3 | B4: =(A4-A$2)*1.25+B$2 -> -0.625 | C4: =C2 -> 1 | D4: mm
A5: 4 | B5: =(A5-A$2)*1.25+B$2 -> 0.625 | C5: =C3 -> -1 | D5: mm
A6: 5 | B6: =(A6-A$2)*1.25+B$2 -> 1.875 | C6: =C4 -> 1 | D6: mm
A7: 6 | B7: =(A7-A$2)*1.25+B$2 -> 3.125 | C7: =C5 -> -1 | D7: mm
A9: Housing Left | B9: =-13.25/2 -> -6.625
A10: Housing Right | B10: =-B9 -> 6.625
A11: Slot Left | B11: =-8.95/2 -> -4.475
A12: Slot Right | B12: =-B11 -> 4.475
A16: Pin | B16: X | C16: Y | D16: Units
A17: 1 | B17: -1.25 | C17: 1 | D17: mm
A18: 2 | B18: =(A18-A$17)*1.25+B$17 -> 0 | C18: =C17-2 -> -1 | D18: mm
A19: 3 | B19: =(A19-A$17)*1.25+B$17 -> 1.25 | C19: =C17 -> 1 | D19: mm
A22: Housing Left | B22: =-9.5/2 -> -4.75
A23: Housing Right | B23: =-B22 -> 4.75
A24: Slot Left | B24: =-5.2/2 -> -2.6
A25: Slot Right | B25: =-B24 -> 2.6
B27: 84.86 | C27: mm
B28: =B27/25.4 -> 3.340944882
B29: 21.79 | C29: mm
B30: =B29/25.4 -> 0.8578740157

Sheet Block Cost
A1: Functional Block | B1: Est. Cost | C1: Qty | E1: Notes
A2: Micro | B2: 4.5 | C2: 2000 | E2: micro, crystal, caps
A3: Config Storage | B3: 0.25 | C3: 2000 | E3: eerom
A4: Power Supply | B4: 4 | C4: 2000 | E4: switching
A5: Learn Mode | B5: 0.1 | C5: 2000 | E5: 2xR, 1xC
A6: Wakeup In | B6: 0.25 | C6: 2000
A7: Wakeup Out | B7: 1 | C7: 2000
A8: LIN Transceiver | B8: 1 | C8: 2000
A9: CAN Transceiver | B9: 1 | C9: 2000 | E9: xcvr, filter, diodes
A10: H-Driver | B10: 3.75 | C10: 2000
A11: LED Driver | B11: 0.1 | C11: 2000
A12: Keypad Sense | B12: 0.25 | C12: 2000
A13: Acoustic Signal | B13: 2.25 | C13: 2000 | E13: need to find -40 to +85 part
A14: Miscellaneous | B14: 3 | C14: 2000 | E14: whatever was forgotton above
A15: Estimated Total | B15: =SUM(B2:B14) -> 21.45
A19: Estimated costs includes the primary and supporting components
B24: LIN | C24: CAN | D24: JD Exclusive | E24: Description
B25: Yes | C25: No | D25: No | E25: smaller micro, no JD/OS
B26: No | C26: Yes | D26: Yes | E26: JD/OS, "fully integrated"
B27: No | C27: Yes | D27: No | E27: powerful micro, ~25-50,000 lines of code

Sheet Acoustic
A1: Acoustic Signal
A2: 4khz - http://www.soundsnap.com/search/audio/4khz/popular
A3: 2khz - http://www.soundsnap.com/search/audio/2khz/popular
A5: Manufacturer | B5: Freq | C5: Temp Range | D5: $ ea | E5: $ @500 | F5: Web
A7: CUI Inc (smd) | B7: 4 khz | C7: '-30 + 70 | D7: $4.81 qty 1 | E7: $2.49 qty 500 | F7: http://search.digikey.com/us/en/products/CMI-1240/102-1196-5-ND/504829
A8: CUI Inc (thru hole) | B8: 4 khz | C8: '-20 +70 | D8: $3.19 qty 1 | E8: $1.65 qty 500 | F8: http://search.digikey.com/us/en/products/CEP-2242/102-1115-ND/412374
A9: PUI Audio (thru hole) | B9: 4 khz | C9: '-20 +70 | D9: $3.66 qty 1 | E9: $2.20 qty 500 | F9: http://search.digikey.com/us/en/products/AI-1440-TWT-12V-R/668-1024-ND/1464763
A10: Mallory (thru hole) | B10: 4.1 khz | C10: '-20 + 90 | D10: $2.43 qty 1 | E10: $2.09 qty 500 | F10: http://search.digikey.com/us/en/products/PK-12N40PQ/458-1066-ND/969793
A11: Kobiton (thru hole) | B11: 4 khz | C11: '-20 + 105 | D11: $4.26 qty 1 | E11: $2.59 qty 500 | F11: http://www.mouser.com/ProductDetail/Kobitone/254-15210-ROX/?qs=05UEgX2TgG1gFl%2faATOCEw%3d%3d
A15: Acoustic Supply | B15: 12 | C15: v
A16: Acoustic Current | B16: 0.005 | C16: A
A17: Driver gain (min) | B17: 50
A18: Base Drive Current | B18: =B16/B17 -> 0.0001 | C18: A
A19: Base Drive Voltage | B19: 3.3 | C19: v
A20: Base Drive Resistance | B20: =B19/B18 -> 33000

Sheet Components
A1: Category | B1: ScratchNotes | C1: Additional Notes
A2: H-Bridge | B2: BTN7960/70/71 | C2: half-Bridge 40V 40A | D2: requires 2 part
A3: H-Bridge | B3: TLE6208-3 | C3: 3 half-bridge .8A 32v | D3: 0.8A not enough
A4: H-Bridge | B4: TLE8201R | C4: Full Door module - Mirror w/heat/light | D4: too many functions - cost
A5: H-Bridge | B5: TLE8203E | C5: Full Door module - Mirror w/heat/light | D5: not enough current
A6: H-Bridge | B6: TLE84106EL | C6: Hex half-bridge | D6: 18v, 0.8A
A7: H-Bridge | B7: TLE7181EM | C7: H-Bridge Driver: 34v, 10 uA quiescient, lots of features (may cost too much) | D7: Pre-Driver for mosfets
A8: H-Bridge | B8: BTM7740G | C8: 8A peak (25C), 5uA quiesc, 40V
A9: H-Bridge | B9: TLE5205 | C9: 4A 40V status
A10: H-Bridge | B10: TLE5206 | C10: 4A 40V status
B12: BTS50015 | C12: Single high-side 28V 33A, 18uA standby | D12: If we need a pre-enable
A14: System Basis Chip | B14: TLE8261E | C14: System Basis Chip, reg, CAN transceiver, watchdog | D14: very interesting combination of parts, but for a system that does not need them all, this is overkill and no alternate sourcing.
A15: System Basis Chip | B15: TLE8262E | C15: 1xLIN
A16: System Basis Chip | B16: TLE8263E | C16: 2xLIN
A17: System Basis Chip | B17: TLE8264E | C17: 3xLIN
A18: System Basis Chip | B18: TLE6266G | C18: CAN, Watchdog | D18: on special request only
A19: Window Lift Module | B19: TLE7810 | C19: Full Window Control on LIN w/8051
A22: Power Supply | B22: TLE6365G | C22: step down w/reset 8 to 40v | D22: no enable
A23: Power Supply | B23: TLE6711G | C23: boost/buck, watchdog, enable | D23: watchdog compatibility
A24: Power Supply | B24: TLE7368E | C24: 5.5v, reset, watchdog | D24: overkill - for high end multi-voltage
A25: Power Supply | B25: TLE4278G | C25: Reset, watchdog | D25: linear part, but with possibly adequate heat-sink
A26: Power Supply | B26: LTC3115-1 | C26: buck-boost, 2.7-40v, 5v1A out, enable, burst mode
A27: Power Supply | B27: LT3433 | C27: buck-boost, 4-60v, 5v .3A, enable
A28: Power Supply | B28: LT3689 | C28: step-down, por, wdt | D28: wdt compatibility?
A29: Power Supply | B29: LT3682 | C29: uPower step down,
A30: Power Supply | B30: LT3631 | C30: 4.5 to 45 to 5v@100mA | D30: nice, but 100mA max
A31: Power Supply | B31: LT3470A | C31: buck reg 12v to 5v@250mA | D31: 8-pin
A32: Power Supply | B32: LTM8021 | C32: 7.5-36v to 5v@500mA | D32: full uModule w most parts (LGA pkg)
A33: Power Supply | B33: LT3502 | C33: 7-40v to 5v@500mA
A34: Power Supply | B34: LT3970 | C34: 7-40 to 5v@350mA, enable, power good out | D34: 10-pin
A35: Power Supply | B35: LT1934ES6 | C35: 6.5-34v to 5v@250mA, enable | D35: 6-pin
A39: Capacitive Touch Sense | C39: Can share matrix with backlight LEDs
A42: Key | B42: Not yet analyzed | C42: part identified from initial scan/research
B43: Candidate Parts | C43: looks even better
B44: Candidate Parts | C44: seems to mee the requirements
B45: Defer rejection | C45: further analysis may be required
B46: Rejected | C46: not appropriate for this project (reason noted)
